{"text_format":"5","workbook":"xlsx","n_sheets":9,"sheets":["I.A ütem ELŐLAP"," I.A ütem Összesítő","I.A ütem kv","I.B ütem ELŐLAP"," I.B ütem Összesítő ","I.B ütem kv ","II. ütem ELŐLAP ","II. ütem Összesítő ","II. ütem kv"],"props":{"creator":"Erzsi","last_modified_by":"Windows-felhasználó"},"not_rendered":{"images":2,"defined_names":9},"read":"whole","wrapped":"gz","date_system":"1900"}

{"sheet":"I.A ütem ELŐLAP","index":0,"n_rows":44,"n_cols":4,"rows_kept":44,"merged":[[27,2,27,5],[28,2,28,5],[29,2,29,5],[30,2,30,5],[31,2,31,5],[34,3,34,5],[35,3,35,5],[36,3,36,5],[39,3,39,5],[43,3,43,5]]}
{"$rows_empty":27}
[null,null,"TÉTELES TERVEZŐI KÖLTSÉGVETÉS"]
[null,null,"KÉSZÜLT A 2112 VERESEGYHÁZ, FŐ ÚT 117-125 HRSZ: 58 SZÁM ALATT LÉTESÍTENDŐ"]
[null,null,"VERESEGYHÁZI KATOLIKUS GIMNÁZIUM"]
[null,null,"BELSŐÉPÍTÉSZETI  TENDERDOKUMENTÁCIÓJÁHOZ"]
[null,null,"I.A ÜTEM"]
[]
[]
[]
[null,null,"MEGBÍZÓ :","EGYHÁZMEGYEI KATOLIKUS ISKOLÁK FŐHATÓSÁGA"]
[{"$nulls":3},"2600 VÁC, MIGAZZI KRISTÓF TÉR 1."]
[]
[null,null,"TERVEZŐ :","TÉRLABOR KFT"]
[{"$nulls":3},"1116 BUDAPEST, HUNYADI M. ÚT 32 2/2."]
[]
[]
[]
[null,null,"KÉSZÜLT :","BUDAPEST, 2017. SZEPTEMBER 15."]

{"sheet":" I.A ütem Összesítő","index":1,"n_rows":26,"n_cols":5,"rows_kept":26,"merged":[[4,1,4,4],[5,1,5,4],[6,1,6,4],[7,1,7,4],[8,1,8,4],[23,3,23,4],[24,3,24,4],[25,3,25,4]]}
[]
[]
[]
[]
[null,"KÖLTSÉGVETÉS MUNKANEM ÖSSZESÍTŐ"]
[null,{"$f":"'I.A ütem ELŐLAP'!C29","v":"KÉSZÜLT A 2112 VERESEGYHÁZ, FŐ ÚT 117-125 HRSZ: 58 SZÁM ALATT LÉTESÍTENDŐ"}]
[null,{"$f":"'I.A ütem ELŐLAP'!C30","v":"VERESEGYHÁZI KATOLIKUS GIMNÁZIUM"}]
[null,{"$f":"'I.A ütem ELŐLAP'!C31","v":"BELSŐÉPÍTÉSZETI  TENDERDOKUMENTÁCIÓJÁHOZ"}]
[null,"1.A ÜTEM"]
[]
[]
[]
[null,"Ssz","Munkanem megnevezése","Anyag összege","Díj összege"]
[null,1,"Belsőépítészeti falazások",{"$f":"'I.A ütem kv'!H13","v":0},{"$f":"'I.A ütem kv'!I13","v":0}]
[null,2,"Belsőépítészeti szárazépítés",{"$f":"'I.A ütem kv'!H23","v":0},{"$f":"'I.A ütem kv'!I23","v":0}]
[null,3,"Burkolás belső térben",{"$f":"'I.A ütem kv'!H86","v":0},{"$f":"'I.A ütem kv'!I86","v":0}]
[null,4,"Belsőépítészeti belső nyílászárók ( B jelű )",{"$f":"'I.A ütem kv'!H191","v":0},{"$f":"'I.A ütem kv'!I191","v":0}]
[null,5,"Felületképzés",{"$f":"'I.A ütem kv'!H201","v":0},{"$f":"'I.A ütem kv'!I201","v":0}]
[null,7,"Belsőépítészeti lakatos szerkezetek ( BL jelű )",{"$f":"'I.A ütem kv'!H236","v":0},{"$f":"'I.A ütem kv'!I236","v":0}]
[null,6,"Beépített bútorozás ( BA jelű )",{"$f":"'I.A ütem kv'!H378","v":0},{"$f":"'I.A ütem kv'!I378","v":0}]
[null,8,"Vízesblokk paravánfalak ( BF jelű )",{"$f":"'I.A ütem kv'!H418","v":0},{"$f":"'I.A ütem kv'!I418","v":0}]
[null,9,"Mosdópultok ( BP jelű )",{"$f":"'I.A ütem kv'!H448","v":0},{"$f":"'I.A ütem kv'!I448","v":0}]
[null,null,"Nettó anyag és díj összesen :",{"$f":"SUM(D14:D22)","v":0},{"$f":"SUM(E14:E22)","v":0}]
[null,null,"Nettó anyag + díj összesen :",{"$f":"D23+E23","v":{"v":0,"d":"0 Ft"}}]
[null,null,"ÁFA 27 %",{"$f":"D24*0.27","v":{"v":0,"d":"0 Ft"}}]
[null,null,"Bruttó anyag + díj összesen :",{"$f":"ROUND(SUM(D24:D25),0)","v":{"v":0,"d":"0 Ft"}}]

{"sheet":"I.A ütem kv","index":2,"n_rows":448,"n_cols":9,"rows_kept":448,"merged":[[1,1,1,8],[2,1,2,8],[3,1,3,8],[4,1,4,8],[5,1,5,8],[9,1,9,8],[15,1,15,8],[25,1,25,8],[26,1,26,8],[27,1,27,8],[28,1,28,8],[88,1,88,8],[89,1,89,8],[90,1,90,8],[91,1,91,8],[93,1,98,1],[99,1,104,1],[105,1,110,1],[111,1,116,1],[117,1,122,1],[123,1,128,1],[129,1,134,1],[135,1,140,1],[141,1,146,1],[147,1,152,1],[153,1,158,1],[159,1,164,1],[166,1,171,1],[172,1,177,1],[178,1,183,1],[184,1,189,1],[193,1,193,8],[194,1,194,8],[195,1,195,8],[203,1,203,8],[204,1,204,8],[205,1,205,8],[206,1,206,8],[238,1,238,8],[239,1,239,8],[380,1,380,8],[381,1,381,8],[383,1,388,1],[389,1,394,1],[395,1,400,1],[401,1,405,1],[420,1,420,8],[421,1,421,8]],"headers":{"footer":["",".oldal"]}}
[]
[null,"TÉTELES TERVEZŐI KÖLTSÉGVETÉS"]
[null,{"$f":"'I.A ütem ELŐLAP'!C29","v":"KÉSZÜLT A 2112 VERESEGYHÁZ, FŐ ÚT 117-125 HRSZ: 58 SZÁM ALATT LÉTESÍTENDŐ"}]
[null,{"$f":"'I.A ütem ELŐLAP'!C30","v":"VERESEGYHÁZI KATOLIKUS GIMNÁZIUM"}]
[null,{"$f":"'I.A ütem ELŐLAP'!C31","v":"BELSŐÉPÍTÉSZETI  TENDERDOKUMENTÁCIÓJÁHOZ"}]
[null,{"$f":"'I.A ütem ELŐLAP'!C32","v":"I.A ÜTEM"}]
[]
[null,"Ssz.","Tétel szövege","Menny.","Egység","Anyag egységár","Díj egységre","Anyag összesen","Díj    összesen"]
[]
[null,"BELSŐÉPÍTÉSZETI FALAZÁS"]
[null,1,"Lábazati fal készítése 1 sor YTONG válaszfaltéglából, 10 cm vastagságban, 15 cm magassággal, öltözőszekrények alatt.",24.15,"fm",null,null,{"$f":"ROUND(D11*F11, 0)","v":0},{"$f":"ROUND(D11*G11, 0)","v":0}]
[null,2,"Előtétfalak készítése YTONG válaszfaltéglából, 5 cm vastagságban, egyes folyosói szakaszokon.",4.68,"m2",null,null,{"$f":"ROUND(D12*F12, 0)","v":0},{"$f":"ROUND(D12*G12, 0)","v":0}]
[null,null,"MUNKANEM összesen :",{"$nulls":4},{"$f":"SUM(H11:H12)","v":0},{"$f":"SUM(I11:I12)","v":0}]
[]
[]
[null,"BELSŐÉPÍTÉSZETI SZÁRAZÉPÍTÉS"]
[null,1,"Gipszkarton előtétfalak készítése vízesblokkban, falba épített WC tartályoknál, CW vázszerkezetre szerelt 2 réteg 12,5 mm-es impregnált gipszkarton lemez.",25.89,"m2",null,null,{"$f":"ROUND(D17*F17, 0)","v":0},{"$f":"ROUND(D17*G17, 0)","v":0}]
[null,2,"Gipszkarton elburkolások készítése, CW vagy fa  vázszerkezetre szerelt 1 réteg normál gipszkarton lemez, a jelzett helyeken a bútorok körül.",104.86,"m2",null,null,{"$f":"ROUND(D18*F18, 0)","v":0},{"$f":"ROUND(D18*G18, 0)","v":0}]
[null,3,"Gipszkarton akusztikai falszerkezet készítése, CW75-ös vázszerkezetre 1x1 réteg 12,5 mm-es normál gipszkarton lemez, közte 7,5 cm vtg hanglágy ásványgyapot kitöltéssel. ( Fm-2 és Fm-3 falmetszet )",{"$f":"53.24+8.83","v":62.07},"m2",null,null,0,0]
[null,null,"ÁLMENNYEZETEK ÉPÍTÉSZETI TERVEK SZERINT"]
[null,4,"Szerelt gipszkarton álmennyezet fém vázszerkezetre, választható ( rugós ) függesztéssel, csavarfejek és illesztések alapglettelve (Q2 minőségben),  1 rtg. 12,5 mm vtg. gipszkarton borítással, a szükséges helyeken revíziós nyílásokkal, valamint a gépészeti berendezések és a lámpahelyek kivágásával."]
[null,5,"Akusztikus, szerelt gipszkarton álmennyezet készítése, fém vázszerkezetre, csavarfejek és illesztések glettelve (Q2 minőségben), Típusa : Rigitone Actív Air 15/30. Étteremben."]
[null,null,"MUNKANEM összesen :",{"$nulls":4},{"$f":"SUM(H17:H22)","v":0},{"$f":"SUM(I17:I22)","v":0}]
[]
[]
[null,"BURKOLÁS BELSŐ TÉRBEN "]
[null,"EGYÜTT KEZELENDŐ A MŰSZAKI SPECIFIKÁCIÓVAL ÉS A TERVEKKEL !"]
[null,"A BURKOLÓ ANYAGOK  CSAK BEMUTATOTT MINTA ALAPJÁN ÉPÍTHETŐK BE !"]
[null,"A MUNKANEM ÁRKÉPZÉSE TARTALMAZZA AZ ELHELYEZÉSHEZ SZÜKSÉGES SEGÉDSZERKEZETEK / ALAPOZÁS, KIEGYENLÍTÉS, RAGASZTÓK, FUGÁK / , TÖMÍTÉSEK, ÉLVÉDŐK STB.  ÁRÁT IS !"]
[null,"I.","PADLÓBURKOLATOK"]
[null,1,"Öntött betonpadló burkolat készítése ( 2-es típus )"]
[null,null,"Ajánlott típusa ( vagy vele műszakilag egyenérkékű ): DUROSTONE DUROFLOW nagy teherbírású, önterrülő padlóhabarcs, 1 cm összvastagságban, amely áll : "]
[null,null,"aljzatelőkészítés: Duroprimer 2 rétegben"]
[null,null,"padlóhabarcs: Doroflow 6-10 mm vastagságban"]
[null,null,"felületvédelem: Durocuring ideiglenes párazárás"]
[null,null,"felületképzés: Harmony Vernis Prémium 2K rugalmas, kopásálló lakk"]
[null,null,"Készül : ( folyosók, lépcsőelőtér )",659.25,"m2",null,null,{"$f":"ROUND(D37*F37, 0)","v":0},{"$f":"ROUND(D37*G37, 0)","v":0}]
[null,2,"Linóleum padlóburkolat, egyszínű, ( 1. típus)"]
[null,null,"Ajánlott típusa ( vagy vele műszakilag egyenérkékű ): FORBO MARMOLEUM REAL/FRESCO/VIVACE, 2,5 mm vtg., amely áll : "]
[null,null,"aljzatkiegyenlítés (pl. Forbo 044 alapozó, Forbo 975 aljzatkiegyenlítő)"]
[null,null,"linóleum, felületfolytonosan hegesztve, ragasztva (Forbo 610)"]
[null,null,"Javasolt színek: Fresco 3882 relaxing lagoon, Real 3238 laguna, Fresco 3828 blue heaven"]
[null,null,"Készül : ( általános tantermek )",714.6,"m2",null,null,{"$f":"ROUND(D43*F43, 0)","v":0},{"$f":"ROUND(D43*G43, 0)","v":0}]
[null,3,"Linóleum padlóburkolat, egyszínű, ( 2. típus)"]
[null,null,"Ajánlott típusa ( vagy vele műszakilag egyenérkékű ): FORBO MARMOLEUM STRIATO COLOUR, 2,5 mm vtg., amely áll : "]
[null,null,"aljzatkiegyenlítés (pl. Forbo 044 alapozó, Forbo 975 aljzatkiegyenlítő)"]
[null,null,"linóleum, felületfolytonosan hegesztve, ragasztva (Forbo 610)"]
[null,null,"Javasolt színek: 5221 colour stream, 5241, sunshine yellow, 5242 red roses, 5243 peacock blue"]
[null,null,"Készül : ( kiemelt tantermek  )",183.34,"m2",null,null,{"$f":"ROUND(D49*F49, 0)","v":0},{"$f":"ROUND(D49*G49, 0)","v":0}]
[null,4,"Ragasztott parketta padlóburkolat ( 1. típus )"]
[null,null,"Amely áll : "]
[null,null,"aljzatkiegyenlítés"]
[null,null,"csaphornyos keményfa tölgyparketta, 2,5 cm vastag, ragasztva"]
[null,null,"olajozott felületképzés"]
[null,null,"Készül : tanári blokk",225.5,"m2",null,null,{"$f":"ROUND(D55*F55, 0)","v":0},{"$f":"ROUND(D55*G55, 0)","v":0}]
[null,5,"Csúszásmentes greslap padlóburkolat ragasztva, fugázva ( 1. típus )"]
[null,null,"Ajánlott típusa ( vagy vele műszakilag egyenérkékű ):        Zalakerámia CEMENTI ZRG 607 vagy ZGD 60607 típus, 30x60 cm méretben, matt szürke színben. Kopásállóság : min. PEI 4, csúszamentesség : min. R10."]
[null,null,"Készül : vízesblokkok",142.18,"m2",null,null,{"$f":"ROUND(D58*F58, 0)","v":0},{"$f":"ROUND(D58*G58, 0)","v":0}]
[null,6,"Csúszásmentes greslap padlóburkolat ragasztva, fugázva ( 2. típus )"]
[null,null,"Ajánlott típusa ( vagy vele műszakilag egyenérkékű ):        Zalakerámia ARCHITECT TAURUS GRANIT TAA35076 76S típus, 30x30 cm méretben, matt szürke színben. Kopásállóság : min. PEI 4, csúszamentesség : min. R10."]
[null,null,"Készül : raktárak, alárendelt helyek",218.88,"m2",null,null,{"$f":"ROUND(D61*F61, 0)","v":0},{"$f":"ROUND(D61*G61, 0)","v":0}]
[null,7,"Lépcsőburkolat készítése ( 1-es típus ) Előregyártott beton ( műkő ) lapok, terrazzo."]
[null,null,"Ajánlott típusa ( vagy vele műszakilag egyenérkékű ): DUROSTONE, DUROCOLOR TERAZZO, terrazzo 2 cm-es összvastagsággal. Felületkeményítő premix, pigmentált, speciális színes szemcsékkel dúsított, szárazhabarcsból, a belépő felületének első 5 cm-es sávja eltérő színezéssel, csúszásmentesített felületképzéssel, kopásállóság: A6, szemcseméret: 0-5 mm, rétegvastagság 6-15 mm.\n"]
[null," 7.1","Készül : ( járólap )",168,"fm",null,null,{"$f":"ROUND(D64*F64, 0)","v":0},{"$f":"ROUND(D64*G64, 0)","v":0}]
[null," 7.2","Készül : ( homloklap )",192,"fm",null,null,{"$f":"ROUND(D65*F65, 0)","v":0},{"$f":"ROUND(D65*G65, 0)","v":0}]
[null,"II.","LÁBAZATOK"]
[null,8,"Műkő lábazat, 8 mm vastagságban, 15 cm-es magassággal, Durosstone, fehér színben. "]
[null,null,"Készül : betonpadlós helyiségekben, lépcsőházakban",{"$f":"144.48+344.29","v":488.77},"fm",null,null,{"$f":"ROUND(D68*F68, 0)","v":0},{"$f":"ROUND(D68*G68, 0)","v":0}]
[null,9,"Rétegelt lemez lábazat, 15 mm vastagságban, 15 cm-es magassággal, r=3 mm-es fózzal, fehér páccal és 2 réteg matt vízesbázisú  lakkal felületkezelve, szilikonprofilba ültetve ."]
[null,null,"Készül : linóleum burkolatos helyiségekben",501.33,"fm",null,null,{"$f":"ROUND(D70*F70, 0)","v":0},{"$f":"ROUND(D70*G70, 0)","v":0}]
[null,10,"Rétegelt lemez lábazat, 15 mm vastagságban, 15 cm-es magassággal, r=3 mm-es fózzal, fehér páccal és 2 réteg matt vízesbázisú  lakkal felületkezelve, szilikonprofil nélkül."]
[null,null,"Készül : parketta burkolatos helyiségekben",133.09,"fm",null,null,{"$f":"ROUND(D72*F72, 0)","v":0},{"$f":"ROUND(D72*G72, 0)","v":0}]
[null,11,"Vágott greslap lábazat, 15 cm-es magassággal, a padlóburkolat anyagával megegyező anyaggal"]
[null,null,"Készül : greslap ( 2. típus ) burkolatos helyiségekben",207.93,"fm",null,null,{"$f":"ROUND(D74*F74, 0)","v":0},{"$f":"ROUND(D74*G74, 0)","v":0}]
[null,"III.","KERÁMIA  FALBURKOLATOK"]
[null,12,"Csempe falburkolat készítése ragasztva, fugázva, a szükséges helyeken élvédőzve.                                              Ajánlott típusa : ZALAKERÁMIA ARCHITECT CARNEVÁL ZBK 53001 vagy vele műszakilag egyenértékű, 20x50 cm-es méretben, fényes fehér színben, vízesblokkokban. ",439.92,"m2",null,null,{"$f":"ROUND(D76*F76, 0)","v":0},{"$f":"ROUND(D76*G76, 0)","v":0}]
[null,13,"Csempe falburkolat készítése ragasztva, fugázva, a szükséges helyeken élvédőzve.                                              Ajánlott típusa : ZALAKERÁMIA ARCHITECT CARNEVÁL ZBR 502 vagy vele műszakilag egyenértékű, 20x20 cm-es méretben, matt fehér színben, alagsori szeményzeti vízesblokkban és konyhában., alárendelt helyeken, tanternmekben.",49.12,"m2",null,null,{"$f":"ROUND(D77*F77, 0)","v":0},{"$f":"ROUND(D77*G77, 0)","v":0}]
[null,14,"Burkolat síkjába ragasztott tükör vízesblokokban.",28.3,"m2",null,null,{"$f":"ROUND(D78*F78, 0)","v":0},{"$f":"ROUND(D78*G78, 0)","v":0}]
[null,"IV.","LINÓLEUM FALBURKOLATOK "]
[null,15,"Linóleum falburkolat burkolat készítése ( egyszínű )                                             Ajánlott típusa ( vagy vele műszakilag egyenérkékű ):  FORBO MARMOLEUM Real/Fresco/Vivace, 2,5 mm vtg. Javasolt színek : Fresco 3882 relaxing lagoon, Real 3238 laguna, Fresco 3828 blue heaven. 1. típus.",129.49,"m2",null,null,{"$f":"ROUND(D80*F80, 0)","v":0},{"$f":"ROUND(D80*G80, 0)","v":0}]
[null,16,"Linóleum falburkolat burkolat készítése (csíkos).                       Ajánlott típusa ( vagy vele műszakilag egyenérkékű ):  FORBO MARMOLEUM Striato colour, 2,5 mm vtg. Javasolt színek: 5221 colour stream, 5241, sunshine yellow, 5242 red roses, 5243 peacock blue. 2. típus,          9.-es jelű.",48.76,"m2",null,null,{"$f":"ROUND(D81*F81, 0)","v":0},{"$f":"ROUND(D81*G81, 0)","v":0}]
[null,"V.","EGYÉB "]
[null,17,"Burkolatváltóprofil elhelyezése rozsdamentes kivitelben, a küszöb nélküli helyeken és a burkolat típus váltásoknál ",40.6,"fm",null,null,{"$f":"ROUND(D83*F83, 0)","v":0},{"$f":"ROUND(D83*G83, 0)","v":0}]
[null,18,"Dilatációs profil elhelyezése rozsdamentes kivitelben.",24.8,"fm",null,null,{"$f":"ROUND(D84*F84, 0)","v":0},{"$f":"ROUND(D84*G84, 0)","v":0}]
[null,19,"Folyosói beton padlóburkolatban utólag gravírozott felíratok kialakítása ( kiviteli terv része )",7,"hely",null,null,{"$f":"ROUND(D85*F85, 0)","v":0},{"$f":"ROUND(D85*G85, 0)","v":0}]
[null,null,"MUNKANEM összesen :",{"$nulls":4},{"$f":"SUM(H37:H85)","v":0},{"$f":"SUM(I37:I85)","v":0}]
[]
[]
[null,"BELSŐ NYÍLÁSZÁRÓK ( B-JELŰ )"]
[null,"A MUNKANEM EGYÜTT KEZELENDŐ A KONSZIGNÁCIÓVAL  ! "]
[null,"AZ EGYSÉGÁR TARTALMAZZA AZ ELHELYEZÉSHEZ SZÜKSÉGES SEGÉDSZERKEZETEK ÁRÁT IS !"]
[null,"A BELSŐ AJTÓK CSAK A MEGRENDELŐNEK ÉS A TERVEZŐNEK  BEMUTATOTT MINTA ALAPJÁN ÉPÍTHETŐK BE !"]
[null,1,"Beltéri ajtók elhelyezése, konszignáció szerinti kialakatásban, vasalattal és felszereltséggel.                                                                               Tok : Utólag elhelyezhető  tüzihorganyzott acél  tok gyári alap felületkezelés, helyszíni fedőmázolás belsőépítészet szerinti színben. \nSzárny: HPL bevonatos ajtólap, furatolt faforgács vagy tömör faforgács betétes, gyári porszórt felületkezelés. A jelzett helyeken az ajtólap alatt 1 cm rés a szellőzésnek.\nKilincs, zár és vasalat típus, konszignáció szerint. Hoppe Paris 138 L vagy vele azonos minőségű rozsdamentes acél kilincs, rozettás, henger- vagy biztonsági zárral.\n"]
[null,"1.1","Tömör belsőajtó. Alagsori vízesblokk."]
[null,null,"Fő jellemzők : tok RAL 7035 színű átfogó acéltok, ajtólap furatolt forgács betétes, törtfehér színű HPL bevonattal, alul szellőzőréssel."]
[null,null,"Nyitása: egyszárnyú nyíló"]
[null,null,"Névleges mérete: 75 / 212,5  cm"]
[null,null,"Konszignációs jele: B-101"]
[null,null,"Készül: ",1,"db     ",null,null,{"$f":"D99*F99","v":0},{"$f":"D99*G99","v":0}]
[null," 1.2","Tömör belsőajtó. Raktár, személyzeti tartozkodó, szerver."]
[null,null,"Fő jellemzők : tok RAL 7035 színű acél saroktok, ajtólap tömör faforgácsbetétes, törtfehér színű HPL bevonattal, Dorma sines kitámasztható ajtócsukó."]
[null,null,"Nyitása: egyszárnyú nyíló"]
[null,null,"Névleges mérete: 100 / 212,5  cm"]
[null,null,"Konszignációs jele: B-301"]
[null,null,"Készül: ",4,"db     ",null,null,{"$f":"D105*F105","v":0},{"$f":"D105*G105","v":0}]
[null," 1.3","Tömör belsőajtó. Folyosói vízesblokkok."]
[null,null,"Fő jellemzők : tok RAL 7035 színű acél saroktok, ajtólap furatolt faforgácslap betétes, törtfehér színű HPL bevonattal, a közlekedő felé dekorációs betéttel, Dorma sines kitámasztható ajtócsukó."]
[null,null,"Nyitása: egyszárnyú nyíló"]
[null,null,"Névleges mérete: 100 / 212,5  cm"]
[null,null,"Konszignációs jele: B-302"]
[null,null,"Készül: ",7,"db     ",null,null,{"$f":"D111*F111","v":0},{"$f":"D111*G111","v":0}]
[null," 1.4","Tömör belsőajtó. Tantermek."]
[null,null,"Fő jellemzők : tok RAL 7035 színű acél saroktok, ajtólap tömör faforgácslap betétes, törtfehér színű HPL bevonattal, a közlekedő felé dekorációs betéttel, süllyesztett automata küszöbbel, 32 dB hanggátlással."]
[null,null,"Nyitása: egyszárnyú nyíló"]
[null,null,"Névleges mérete: 100 / 212,5  cm"]
[null,null,"Konszignációs jele: B-303"]
[null,null,"Készül: ",10,"db     ",null,null,{"$f":"D117*F117","v":0},{"$f":"D117*G117","v":0}]
[null," 1.5","Tömör belsőajtó. Öltöző, mosdó."]
[null,null,"Fő jellemzők : tok RAL 7035 színű átfogó acéltok, ajtólap furatolt faforgácslap betétes, törtfehér színű HPL bevonattal, alul szellőzőréssel."]
[null,null,"Nyitása: egyszárnyú nyíló"]
[null,null,"Névleges mérete: 100 / 212,5  cm"]
[null,null,"Konszignációs jele: B-304"]
[null,null,"Készül: ",1,"db     ",null,null,{"$f":"D123*F123","v":0},{"$f":"D123*G123","v":0}]
[null," 1.6","Tömör belsőajtó. Általános ajtó."]
[null,null,"Fő jellemzők : tok RAL 7035 színű átfogó acéltok, ajtólap furatolt faforgácslap betétes, törtfehér színű HPL bevonattal."]
[null,null,"Nyitása: egyszárnyú nyíló"]
[null,null,"Névleges mérete: 100 / 212,5  cm"]
[null,null,"Konszignációs jele: B-305"]
[null,null,"Készül: ",4,"db     ",null,null,{"$f":"D129*F129","v":0},{"$f":"D129*G129","v":0}]
[null," 1.7","Tömör belsőajtó. Folyosói vízesblokkok."]
[null,null,"Fő jellemzők : tok RAL 7035 színű átfogó acéltok, ajtólap furatolt faforgácslap betétes, törtfehér színű HPL bevonattal, a közlekedő felé dekorációs betéttel, Dorma sines kitámasztható ajtócsukó."]
[null,null,"Nyitása: egyszárnyú nyíló"]
[null,null,"Névleges mérete: 100 / 212,5  cm"]
[null,null,"Konszignációs jele: B-306"]
[null,null,"Készül: ",6,"db     ",null,null,{"$f":"D135*F135","v":0},{"$f":"D135*G135","v":0}]
[null," 1.8","Tömör belsőajtó. Általános ajtó."]
[null,null,"Fő jellemzők : tok RAL 7035 színű átfogó acéltok, ajtólap furatolt faforgácslap betétes, törtfehér színű HPL bevonattal, alul szellőzőréssel."]
[null,null,"Nyitása: egyszárnyú nyíló"]
[null,null,"Névleges mérete: 100 / 212,5  cm"]
[null,null,"Konszignációs jele: B-307"]
[null,null,"Készül: ",6,"db     ",null,null,{"$f":"D141*F141","v":0},{"$f":"D141*G141","v":0}]
[null," 1.9","Tömör belsőajtó. Alagsori általános ajtó."]
[null,null,"Fő jellemzők : tok RAL 7035 színű átfogó acéltok, ajtólap furatolt faforgácslap betétes, törtfehér színű HPL bevonattal."]
[null,null,"Nyitása: egyszárnyú nyíló"]
[null,null,"Névleges mérete: 100 / 212,5  cm"]
[null,null,"Konszignációs jele: B-310"]
[null,null,"Készül: ",1,"db     ",null,null,{"$f":"D147*F147","v":0},{"$f":"D147*G147","v":0}]
[null," 1.10","Tömör belsőajtó. Szertár, tanári."]
[null,null,"Fő jellemzők : tok RAL 7035 színű acél saroktok, ajtólap furatolt faforgács betétes, törtfehér színű HPL bevonattal, max. 2 cm magas küszöbbel."]
[null,null,"Nyitása: egyszárnyú nyíló"]
[null,null,"Névleges mérete: 100 / 212,5  cm"]
[null,null,"Konszignációs jele: B-311"]
[null,null,"Készül: ",5,"db     ",null,null,{"$f":"D153*F153","v":0},{"$f":"D153*G153","v":0}]
[null," 1.11","Tömör belsőajtó. 1.-2. emeleti tantermek."]
[null,null,"Fő jellemzők : tok RAL 7035 színű átfogó acéltok, ajtólap tömör faforgács betétes, törtfehér színű HPL bevonattal, a közlekedő felé dekorációs betéttel, süllyesztett automata küszöbbel, 32 dB hanggátlással."]
[null,null,"Nyitása: egyszárnyú nyíló"]
[null,null,"Névleges mérete: 100 / 212,5  cm"]
[null,null,"Konszignációs jele: B-318"]
[null,null,"Készül: ",5,"db     ",null,null,{"$f":"D159*F159","v":0},{"$f":"D159*G159","v":0}]
[null," 1.12","Tömör belsőajtó. 1. emelet tanterem."]
[null,null,"Fő jellemzők : tok RAL 7035 színű acél saroktok, ajtólap tömör faforgács betétes, törtfehér színű HPL bevonattal, a közlekedő felé dekorációs betéttel, süllyeszett automata küszöbbel, 32 dB hanggátlással."]
[null,null,"Nyitása: kétszárnyú, asszimetrikusan  nyíló"]
[null,null,"Névleges mérete: 160 / 212,5  cm"]
[null,null,"Konszignációs jele: B-405"]
[null,null,"Készül: ",1,"db     ",null,null,{"$f":"D165*F165","v":0},{"$f":"D165*G165","v":0}]
[null,2,"Beltéri üvegajtók elhelyezése, konszignáció szerinti kialakatásban, vasalattal és felszereltséggel.                                                                               Tok : Alumínium tokszerkezete DEKO FG34 vagy vele műszakilag egyenértékű, gyári porszórt RAL 7035 világosszürke színben.\nSzárny: keretnélküli 10 mm-es ESG üveg.\nKilincs, zár és vasalat típus, konszignáció szerint illetve típus szerint.\n"]
[null," 2.1","Üvegfal ajtóval. Tanári. "]
[null,null,"Fő jellemzők : 90 / 240 cm-es fix oldalelem, 90 / 240 cm-es ajtóval"]
[null,null,"Nyitása: ( ajtó ) egyszárnyú nyíló"]
[null,null,"Névleges mérete:  180 ( 90 + 90 ) / 240  cm"]
[null,null,"Konszignációs jele: B-501"]
[null,null,"Készül: ",1,"db     ",null,null,{"$f":"D172*F172","v":0},{"$f":"D172*G172","v":0}]
[null," 2.2","Üvegfal ajtóval. Tanári. "]
[null,null,"Fő jellemzők : 90 / 240 cm-es fix oldalelem, 90 / 240 cm-es ajtóval"]
[null,null,"Nyitása: ( ajtó ) egyszárnyú nyíló"]
[null,null,"Névleges mérete:  180 ( 90 + 90 ) / 240  cm"]
[null,null,"Konszignációs jele: B-502"]
[null,null,"Készül: ",4,"db     ",null,null,{"$f":"D178*F178","v":0},{"$f":"D178*G178","v":0}]
[null," 2.3","Üvegfal ajtóval. Tanári. "]
[null,null,"Fő jellemzők : 55 / 240 cm-es fix oldalelem, 90 / 240 cm-es ajtóval"]
[null,null,"Nyitása: ( ajtó ) egyszárnyú nyíló"]
[null,null,"Névleges mérete:  145 ( 55 + 90 )  / 240  cm"]
[null,null,"Konszignációs jele: B-503"]
[null,null,"Készül: ",1,"db     ",null,null,{"$f":"D184*F184","v":0},{"$f":"D184*G184","v":0}]
[null," 2.4","Üvegfal ajtóval. Tanári. "]
[null,null,"Fő jellemzők : 2x145 / 240 cm-es fix oldalelem, középen 110 / 240 cm-es ajtóval"]
[null,null,"Nyitása: ( ajtó ) egyszárnyú nyíló"]
[null,null,"Névleges mérete:  400 ( 145 + 110 + 145 ) / 240  cm"]
[null,null,"Konszignációs jele: B-504"]
[null,null,"Készül: ",1,"db     ",null,null,{"$f":"D190*F190","v":0},{"$f":"D190*G190","v":0}]
[null,null,"MUNKANEM összesen :",{"$nulls":4},{"$f":"SUM(H99:H190)","v":0},{"$f":"SUM(I99:I190)","v":0}]
[]
[]
[null,"FELÜLETKÉPZÉS"]
[null,"A MUNKANEM EGYÜTT KEZELENDŐ A SPECIFIKÁCIÓVAL ÉS AZ IDEVONATKOZÓ TERVEKKEL !"]
[null,"AZ ASZTALOS ÉS A LAKATOS MUNKÁK FELÜLETKÉZÉSE AZ ADOTT MUNKANEMNNÉL SZEREPEL !"]
[null,1,"Belső festéseknél felület előkészítése, részmunkák; glettelés, műanyag kötőanyagú glettel (simítótapasszal), vakolt  vagy gipszkarton felületen",{"$f":"D198+D199","v":{"v":6679.58,"d":"6,679.58"}},"m2",null,null,{"$f":"ROUND(D197*F197, 0)","v":0},{"$f":"ROUND(D197*G197, 0)","v":0}]
[null,2,"Diszperziós festés műanyag bázisú vizes-diszperziós festékke, három rétegben, sima felületen. ( 10a ).                     Ajánlott típusa : STOcolor In vagy vele azonos minőségű belsőtéri falfesték, törtfehér színben. ",4567.03,"m2",null,null,0,0]
[null,3,"Mosható falfestés glettelt felületen, három rétegben, sima felületen. ( 10b ).                                                                        Ajánlott típusa :  STOcolor Opticryl Satinmatt vagy vele azonos minőségű belsőtéri falfesték, törtfehér fehér színben.",{"$f":"63.73+750.99+1008.84+288.99","v":2112.55},"m2",null,null,{"$f":"ROUND(D199*F199, 0)","v":0},{"$f":"ROUND(D199*G199, 0)","v":0}]
[null,4,"Egyedi lépcsőt szinbolizáló vonalas festett grafika szintenként",4,"klt",null,null,{"$f":"ROUND(D200*F200, 0)","v":0},{"$f":"ROUND(D200*G200, 0)","v":0}]
[null,null,"MUNKANEM összesen :",{"$nulls":4},{"$f":"SUM(H197:H199)","v":0},{"$f":"SUM(I197:I199)","v":0}]
[]
[]
[null,"LAKATOS SZERKEZETEK ( BL JELŰ )"]
[null,"A MUNKANEM EGYÜTT KEZELENDŐ A KONSZIGNÁCIÓVAL  ! "]
[null,"AZ EGYSÉGÁR TARTALMAZZA AZ ELHELYEZÉSHEZ SZÜKSÉGES SEGÉDSZERKEZETEK, KÖTŐELEMEK, A TAKARÁS, TÖMÍTÉS ÁRÁT IS !"]
[null,"A LAKATOS SZERKEZETEK EGYSÉGÁRÁBA BELEÉRTENDŐ A VÉGLEGES FELÜLETKEZELÉS IS !"]
[null,1,"Egyedi kivitelű lépcsőkorlát  legyártása és elhelyezése ( ferde szakasz )"]
[null,null,"Kialakítása : konszignáció szerint.                                                Fő anyag jellemzők : átmérő 50 mm-es és átmétő 20 mm-es szálcsiszolt rozsdamentes acél, átmérő 50 mm-es lakkozott keményfa fogódzóval, sarkokban 5 cm-es sugarú ívvel."]
[null,null,"Konszignációs jele : BL-01a"]
[null,null,"Készül : ",42.47,"fm",null,null,{"$f":"ROUND(D211*F211, 0)","v":0},{"$f":"ROUND(D211*G211, 0)","v":0}]
[null,2,"Egyedi kivitelű lépcsőkorlát  legyártása és elhelyezése ( egyenes szakasz )"]
[null,null,"Kialakítása : konszignáció szerint.                                                Fő anyag jellemzők : átmérő 50 mm-es és átmétő 20 mm-es szálcsiszolt rozsdamentes acél, átmérő 50 mm-es lakkozott keményfa fogódzóval, sarkokban 5 cm-es sugarú ívvel."]
[null,null,"Konszignációs jele : BL-01b"]
[null,null,"Készül : ",8.74,"fm",null,null,{"$f":"ROUND(D215*F215, 0)","v":0},{"$f":"ROUND(D215*G215, 0)","v":0}]
[null,3,"Egyedi kivitelű korlát legyártása és elhelyezése            ( a lépcsőházi ablakfülkében   )"]
[null,null,"Kialakítása : konszignáció szerint.                                                Fő anyag jellemzők : átmérő 50 mm-es és átmétő 20 mm-es szálcsiszolt rozsdamentes acél, átmérő 50 mm-es lakkozott keményfa fogódzóval. Mérete :  60 / 100 cm."]
[null,null,"Konszignációs jele : BL-03"]
[null,null,"Készül : ",12,"db",null,null,{"$f":"ROUND(D219*F219, 0)","v":0},{"$f":"ROUND(D219*G219, 0)","v":0}]
[null,4,"Egyedi kivitelű acéllétra legyártása és elhelyezése             ( fszt.-i 1.05 jelű tanáriban )"]
[null,null,"Kialakítása : konszignáció szerint.                                                Fő anyag jellemzők :  átmérő 30.3 mm-es és átmérő 20 mm-es köracél, végleges festett felületképzéssel. Befoglaló mérete :  sz=40 cm; H=237,5 cm"]
[null,null,"Konszignációs jele : BL-05"]
[null,null,"Készül : ",1,"db",null,null,{"$f":"ROUND(D223*F223, 0)","v":0},{"$f":"ROUND(D223*G223, 0)","v":0}]
[null,5,"Gépészeti rács elhelyezése  ( elszívás )"]
[null,null,"Típusa : AIRVENT E5-RU-600x150, 12 db  RAL 9006, 3 db ( RAL 9005 ) szürke színben"]
[null,null,"Konszignációs jele : BL-06a"]
[null,null,"Készül : ",15,"db",null,null,{"$f":"ROUND(D227*F227, 0)","v":0},{"$f":"ROUND(D227*G227, 0)","v":0}]
[null,6,"Gépészeti rács elhelyezése  ( befúvás )"]
[null,null,"Típusa : AIRVENT E5-RU-600x150, 13 db  RAL 9006, 2 db ( RAL 9005 ) szürke színben"]
[null,null,"Konszignációs jele : BL-06b"]
[null,null,"Készül : ",15,"db",null,null,{"$f":"ROUND(D231*F231, 0)","v":0},{"$f":"ROUND(D231*G231, 0)","v":0}]
[null,7,"Acél konzol legyártása és elhelyezése  "]
[null,null,"Kialakítása : 40x40x4-es acélzártszelvény, alapmázolva, 74,5x78x26 cm befoglaló mérettel."]
[null,null,"Konszignációs jele : BL-07"]
[null,null,"Készül : ",4,"db",null,null,{"$f":"ROUND(D235*F235, 0)","v":0},{"$f":"ROUND(D235*G235, 0)","v":0}]
[null,null,"MUNKANEM összesen :",{"$nulls":4},{"$f":"SUM(H211:H235)","v":0},{"$f":"SUM(I211:I235)","v":0}]
[]
[]
[null,"BELSŐÉPÍTÉSZETI BÚTOROZÁS ( BA JELŰ )"]
[null,"A MUNKANEM EGYÜTT KEZELENDŐ A KONSZIGNÁCIÓVAL ! "]
[null,1,"Személyzeti teakonyha szekrény. Alagsor AL:1.06 személyzeti tartózkodó."]
[null,null,"Kialakítása : konszignáció szerint.                                                Főjellemzők : "]
[null,null,"Szerkezeti anyag : 18 mm-es fehér laminált bútorlap, Resopal 0105-60, ABS élzárással, 38 mm-es HPL élkerekített postforning munkalappal, rozsdamentes, állítható, dekorbevonatú lábazattal, 5 db fogantyúval."]
[null,null,"Kiegészítők : Livinox BL-EC196K rozsdamentes mosogató, 58x49 cm méretben"]
[null,null,"Alsó szekrény mérete : Hossz = 180 cm, magassága : 90 cm, szélessége : 60 cm. "]
[null,null,"Felső szekrény mérete : Hossz = 180 cm, magassága : 70 cm, szélessége : 35 cm. "]
[null,null,"Konszignációs jele : BA-03"]
[null,null,"Készül : ",1,"db",null,null,{"$f":"ROUND(D248*F248, 0)","v":0},{"$f":"ROUND(D248*G248, 0)","v":0}]
[null,2,"Vegyszerálló szertár pult. Földszint 1.16 szertár."]
[null,null,"Kialakítása : konszignáció szerint.                                                Főjellemzők : "]
[null,null,"Szerkezeti anyag : 18 mm-es nyír rétegelt rétegelt lemez, látszó élekkel, közé-záródó ajtókkal, R3 mm-es fózzal, 2 réteg vízesbázisú matt lakkozással,  a pult 5 mm vastag vegyszerálló fehér laminált bútolappal, ABS élzárással., porszórt acéllábakkal, tartókonzolokkal."]
[null,null,"Kiegészítők : 5 db a  pultba süllyesztett alumínium szellőzőrács, PALADIN fali edényszárító 72 tüskével."]
[null,null,"Mérete : Hossz = 465 cm, magassága : 70 + 15 cm, szélessége : 60 cm."]
[null,null,"Konszignációs jele : BA-09"]
[null,null,"Készül : ",1,"db",null,null,{"$f":"ROUND(D255*F255, 0)","v":0},{"$f":"ROUND(D255*G255, 0)","v":0}]
[null,3,"Szertár beépített szekrény. Földszint 1.16 szertár."]
[null,null,"Kialakítása : konszignáció szerint.                                                Főjellemzők : "]
[null,null,"Szerkezeti anyag : 18 mm-es nyír rétegelt rétegelt lemez, látszó élekkel, közé-záródó ajtókkal, R3 mm-es fózzal, 2 réteg vízesbázisú matt lakkozással. Belső korpusz fehér laminált bútorlap, ABS élzárással."]
[null,null,"Kiegészítők : 4 db bútorzárral, foganytyúk : 30 mm-es átmérőjű kör lyuk a bútorlapba marva."]
[null,null,"Mérete : Hossz = 220 cm, magassága : 345 cm, szélessége : 50 cm."]
[null,null,"Konszignációs jele : BA-10"]
[null,null,"Készül : ",1,"db",null,null,{"$f":"ROUND(D262*F262, 0)","v":0},{"$f":"ROUND(D262*G262, 0)","v":0}]
[null,4,"Szertár beépített szekrény. Földszint 1.16 szertár."]
[null,null,"Kialakítása : konszignáció szerint.                                                Főjellemzők : "]
[null,null,"Szerkezeti anyag : 18 mm-es nyír rétegelt rétegelt lemez, látszó élekkel, közé-záródó ajtókkal, R3 mm-es fózzal, 2 réteg vízesbázisú matt lakkozással. Belső korpusz fehér laminált bútorlap, ABS élzárással."]
[null,null,"Kiegészítők : 4 db bútorzárral, foganytyúk : 30 mm-es átmérőjű kör lyuk a bútorlapba marva."]
[null,null,"Mérete : Hossz = 300 cm, magassága : 345 cm, szélessége : 60 cm."]
[null,null,"Konszignációs jele : BA-11"]
[null,null,"Készül : ",1,"db",null,null,{"$f":"ROUND(D269*F269, 0)","v":0},{"$f":"ROUND(D269*G269, 0)","v":0}]
[null,5,"Tanári könyvespolc. Földszint 1.05 tanári."]
[null,null,"Kialakítása : konszignáció szerint.                                                Főjellemzők : "]
[null,null,"Szerkezeti anyag : 18 mm-es nyír rétegelt rétegelt lemez, PANNONFORM fekete melamin bevonattal, látszó élekkel, R3 mm-es élkerekítéssel, Ajtófrontok PANNONFORM METSA TOP ( fekete)  bevonattal, látszó élekkel, R3 mm-es élkerekítéssel."]
[null,null,"Kiegészítők : falra dűbelezett acélkonzolra erősített 30 mm vtg szálcsiszolt rozsdamentes acélcső."]
[null,null,"Benne :  fekete táblafestékkel festett felület, 98 / 177 cm méretben."]
[null,null,"Mérete : Hossz = 600 cm, magassága : 345 cm, szélessége : 30 cm."]
[null,null,"Konszignációs jele : BA-16a"]
[null,null,"Készül : ",1,"db",null,null,{"$f":"ROUND(D277*F277, 0)","v":0},{"$f":"ROUND(D277*G277, 0)","v":0}]
[null,6,"Tanári könyvespolc. Földszint 1.05 tanári."]
[null,null,"Kialakítása : konszignáció szerint.                                                Főjellemzők : "]
[null,null,"Szerkezeti anyag : 18 mm-es nyír rétegelt rétegelt lemez, PANNONFORM fekete melamin bevonattal, látszó élekkel, R3 mm-es élkerekítéssel, Ajtófrontok PANNONFORM METSA TOP ( fekete)  bevonattal, látszó élekkel, R3 mm-es élkerekítéssel."]
[null,null,"Kiegészítők : falra dűbelezett acélkonzolra erősített 30 mm vtg szálcsiszolt rozsdamentes acélcső."]
[null,null,"Mérete : Hossz = 455 cm, magassága : 345 cm, szélessége : 30 cm."]
[null,null,"Konszignációs jele : BA-16b"]
[null,null,"Készül : ",1,"db",null,null,{"$f":"ROUND(D284*F284, 0)","v":0},{"$f":"ROUND(D284*G284, 0)","v":0}]
[null,7,"Tanári szekrény. Földszint 1.05 tanári."]
[null,null,"Kialakítása : konszignáció szerint.                                                Főjellemzők : "]
[null,null,"Szerkezeti anyag : 18 mm-es nyír rétegelt rétegelt lemez, PANNONFORM fekete melamin bevonattal, látszó élekkel, R3 mm-es élkerekítéssel."]
[null,null,"Kiegészítők : átmérő 15 mm-es szálcsiszolt rozsdamentes acélcső polcfelfügesztés."]
[null,null,"Mérete : Hossz = 211 cm, magassága : 240 cm, szélessége : 66 cm."]
[null,null,"Konszignációs jele : BA-17"]
[null,null,"Készül : ",1,"db",null,null,{"$f":"ROUND(D291*F291, 0)","v":0},{"$f":"ROUND(D291*G291, 0)","v":0}]
[null,8,"Tanári teakonyha szekrény tolóajtóval. Földszint 1.05 tanári."]
[null,null,"Kialakítása : konszignáció szerint.                                                Főjellemzők : "]
[null,null,"Szerkezeti anyag : 18 mm-es nyír rétegelt rétegelt lemez, PANNONFORM fekete melamin bevonattal, látszó élekkel, R3 mm-es élkerekítéssel, az ajtófrontok METSA TOP ( fekete ) felülettel, 38 mm vastag tömbösített nyír munkapulttal, ajtólapból kivágott 20/35 m-es foganytyúkkal."]
[null,null,"Kiegészítők : a mosogatópult felett 60 cm-es magassággal ragasztott szürke screen üveg ( 1,05 m2 )"]
[null,null,"Egyéb : a konyszekrény előtt üveg tolóajtó, 2 rétegű ragasztott biztonsági, sötérszürke színű screen üvegezéssel, TWIN 50 alumínium tolóajtó vasalattal és alumínium foganytyúval. Mérete : 354 / 350 cm."]
[null,null,"A szekrény teljes mérete : Hossz = 354 cm, magassága : 240 cm, szélessége : 60 cm."]
[null,null,"Konszignációs jele : BA-18"]
[null,null,"Készül : ",1,"db",null,null,{"$f":"ROUND(D299*F299, 0)","v":0},{"$f":"ROUND(D299*G299, 0)","v":0}]
[null,9,"Titkársági pult. Földszint 1.04 titkárság."]
[null,null,"Kialakítása : konszignáció szerint.                                                Főjellemzők : "]
[null,null,"Szerkezeti anyag : 40.40.3 porszórt zártszelvény vázszerkezet, állítható lábakkal. Frontlap : 15 mm vastag nyers forgácslap, Marmóleum Stirato ragasztott linóleum burkolattal. Asztallap 400 x 80 cm méretben, : felső réteg 15 mm vastag KOSKIDECOR TRANSPARENT melamin bevonatos rétegelt lemez, alsó hordozó 15 mm vastag faforgácslap, 30/40 mm-es duplinglt rétegelt lemez élzárással, a látszó élek R3 mm-es fózzal. A pulttető 400 x 30 cm méretben : 15 mm-es dekoritlap, élléccel."]
[null,null,"Egyéb : Belső kisfakkos polcok, 400 x 34 cm  mérettel, 8 mm vastag fenyőfa rétegelt lemezből."]
[null,null,"Csatlakozó szerkezet : 3 db zárható, irodai fiókos konténer, 45x55x60 cm méretben, 2-2 kábelátvezető furat."]
[null,null,"A pult teljes mérete : Hossz = 400 cm, magassága : 100 cm, szélessége : 110 cm."]
[null,null,"Konszignációs jele : BA-19"]
[null,null,"Készül : ",1,"db",null,null,{"$f":"ROUND(D307*F307, 0)","v":0},{"$f":"ROUND(D307*G307, 0)","v":0}]
[null,10,"Titkársági szekrény. Földszint 1.04 titkárság."]
[null,null,"Kialakítása : konszignáció szerint.                                                Főjellemzők : "]
[null,null,"Szerkezeti anyag : 18 mm vastag nyír rétegelt lemez, látszó élekkel, közé-záródó ajtókkal, R3 mm-es fózzal, 2 réteg vízesbázisú matt lakkal."]
[null,null,"Kiegészítés : üveg tolóajtó Kamex Vetrine 15 tolóajtó vasalattal, bútorzárral."]
[null,null,"Mérete : Hossz = 216 cm, magassága : 240 cm, szélessége : 38 cm."]
[null,null,"Konszignációs jele : BA-20"]
[null,null,"Készül : ",1,"db",null,null,{"$f":"ROUND(D314*F314, 0)","v":0},{"$f":"ROUND(D314*G314, 0)","v":0}]
[null,11,"Titkársági szekrény. Földszint 1.04 titkárság."]
[null,null,"Kialakítása : konszignáció szerint.                                                Főjellemzők : "]
[null,null,"Szerkezeti anyag : 18 mm vastag nyír rétegelt lemez, látszó élekkel, közé-záródó ajtókkal, R3 mm-es fózzal, 2 réteg vízesbázisú matt lakkal. Belső korpusz fehér laminált lap, ABS élzárással."]
[null,null,"Kiegészítés : bútorzár."]
[null,null,"Mérete : Hossz = 216 cm, magassága : 240 cm, szélessége : 38 cm."]
[null,null,"Konszignációs jele : BA-21"]
[null,null,"Készül : ",1,"db",null,null,{"$f":"ROUND(D321*F321, 0)","v":0},{"$f":"ROUND(D321*G321, 0)","v":0}]
[null,12,"Igazgatói szekrény. Földszint 1.06 igazgatói iroda."]
[null,null,"Kialakítása : konszignáció szerint.                                                Főjellemzők : "]
[null,null,"Szerkezeti anyag : 18 mm vastag nyír rétegelt lemez, látszó élekkel, közé-záródó ajtókkal, R3 mm-es fózzal, 2 réteg vízesbázisú matt lakkal. Belső korpusz fehér laminált lap, ABS élzárással."]
[null,null,"Kiegészítés : üveg tolóajtó Kamex Vetrine 15 tolóajtó vasalattal, 6 db fiókkal, bútorzárral."]
[null,null,"Kiegészítő szerkezet : A bútorral összeépítendő és az anyagával megegyező 60 / 345 cm méretű faburkolat."]
[null,null,"Szekrény mérete : Hossz = 370 cm, magassága : 275 cm, szélessége : 60 ( 40+20) cm."]
[null,null,"Konszignációs jele : BA-22"]
[null,null,"Készül : ",1,"db",null,null,{"$f":"ROUND(D329*F329, 0)","v":0},{"$f":"ROUND(D329*G329, 0)","v":0}]
[null,13,"Vitrines könyvesszekrény. Földszint 1.06 igazgatói iroda."]
[null,null,"Kialakítása : konszignáció szerint.                                                Főjellemzők : "]
[null,null,"Szerkezeti anyag : 18 mm vastag nyír rétegelt lemez, látszó élekkel, közé-záródó ajtókkal, R3 mm-es fózzal, 2 réteg vízesbázisú matt lakkal. Belső korpusz fehér laminált lap, ABS élzárással."]
[null,null,"Kiegészítés : üveg tolóajtó Kamex Vetrine 15 tolóajtó vasalattal, bútorzárral."]
[null,null,"Csatlakozó kiegészítő szerkezet : A bútorral összeépítendő és az anyagával megegyező 72 / 345 + 37 / 345 + 30 / 345 cm méretű faburkolat."]
[null,null,"Szekrény mérete : Hossz = 270 cm, magassága : 275 cm, szélessége : 35 cm."]
[null,null,"Konszignációs jele : BA-23"]
[null,null,"Készül : ",1,"db",null,null,{"$f":"ROUND(D337*F337, 0)","v":0},{"$f":"ROUND(D337*G337, 0)","v":0}]
[null,14,"Beépített iratszekrény zárható ajtókkal. Földszint 1.07 gazdasági iroda."]
[null,null,"Kialakítása : konszignáció szerint.                                                Főjellemzők : "]
[null,null,"Szerkezeti anyag : 18 mm vastag nyír rétegelt lemez, látszó élekkel, közé-záródó ajtókkal, R3 mm-es fózzal, 2 réteg vízesbázisú matt lakkal. Belső korpusz fehér laminált lap, ABS élzárással."]
[null,null,"Kiegészítés :  bútorzárak."]
[null,null,"Csatlakozó kiegészítő szerkezet : A bútorral összeépítendő és az anyagával megegyező faburkolat."]
[null,null,"Szekrény mérete : Hossz = 226 cm, magassága : 275 cm, szélessége : 50 cm."]
[null,null,"Konszignációs jele : BA-24a"]
[null,null,"Készül : ",1,"db",null,null,{"$f":"ROUND(D345*F345, 0)","v":0},{"$f":"ROUND(D345*G345, 0)","v":0}]
[null,15,"Beépített iratszekrény zárható ajtókkal. Földszint 1.07 gazdasági iroda."]
[null,null,"Kialakítása : konszignáció szerint.                                                Főjellemzők : "]
[null,null,"Szerkezeti anyag : 18 mm vastag nyír rétegelt lemez, látszó élekkel, közé-záródó ajtókkal, R3 mm-es fózzal, 2 réteg vízesbázisú matt lakkal. Belső korpusz fehér laminált lap, ABS élzárással."]
[null,null,"Kiegészítés :  bútorzárak."]
[null,null,"Szekrény mérete : Hossz = 452 cm, magassága : 275 cm, szélessége : 50 cm."]
[null,null,"Konszignációs jele : BA-24b"]
[null,null,"Készül : ",1,"db",null,null,{"$f":"ROUND(D352*F352, 0)","v":0},{"$f":"ROUND(D352*G352, 0)","v":0}]
[null,16,"Fém irattároló szekrény. Földszint 1.09 irattár."]
[null,null,"Kialakítása : konszignáció szerint.                                                Főjellemzők : "]
[null,null,"Típusa : Matalobox Document fém szekrény, kétszárnyú nyíló ajtóval, gyári porszórt felülettel, zárható kivitelben."]
[null,null,"Mérete : Hossz = 100 cm, magassága : 100 cm, szélessége : 42 cm."]
[null,null,"Konszignációs jele : BA-25a"]
[null,null,"Készül : ",10,"db",null,null,{"$f":"ROUND(D358*F358, 0)","v":0},{"$f":"ROUND(D358*G358, 0)","v":0}]
[null,17,"Fém irattároló szekrény. Földszint 1.09 irattár."]
[null,null,"Kialakítása : konszignáció szerint.                                                Főjellemzők : "]
[null,null,"Típusa : Matalobox Document fém szekrény, kétszárnyú nyíló ajtóval, gyári porszórt felülettel, zárható kivitelben."]
[null,null,"Mérete : Hossz = 100 cm, magassága : 198 cm, szélessége : 42 cm."]
[null,null,"Konszignációs jele : BA-25b"]
[null,null,"Készül : ",10,"db",null,null,{"$f":"ROUND(D364*F364, 0)","v":0},{"$f":"ROUND(D364*G364, 0)","v":0}]
[null,18,"Szertári szekrény. 1. emelet 1.05, 2. emelet 1.05."]
[null,null,"Kialakítása : konszignáció szerint.                                                Főjellemzők : "]
[null,null,"Szerkezeti anyag : 18 mm-es nyír rétegelt rétegelt lemez, látszó élekkel, közé-záródó ajtókkal, R3 mm-es fózzal, 2 réteg vízesbázisú matt lakkozással. Belső korpusz fehér laminált bútorlap, ABS élzárással."]
[null,null,"Kiegészítők : 6 db fiók,  bútorzárral, foganytyúk : 30 mm-es átmérőjű kör lyuk a bútorlapba marva."]
[null,null,"Mérete : Hossz = 608 cm, magassága : 300 cm, szélessége : 40 cm."]
[null,null,"Konszignációs jele : BA-45"]
[null,null,"Készül : ",2,"db",null,null,{"$f":"ROUND(D371*F371, 0)","v":0},{"$f":"ROUND(D371*G371, 0)","v":0}]
[null,19,"Galérai mellvédkorlát ( egyenes )"]
[null,null,"Kialakítása : konszignáció szerint.                                                Főjellemzők : "]
[null,null,"Szerkezeti anyag : 60.30.3 zártszelvény hegesztett vázszerkezet, felületkezelve, fenyő stavnivázzal kiegésztve. 18 mm vtg KOSKIDECOR TRANSPARENT 18 mm vastag melamin fólia bevonatú rétegelt lemez burkolat, hullámlemezekből összállított táblákkal."]
[null,null,"Mérete : teljes hossz = 728 cm , teljes magassága : 75 cm, szélessége : 20 cm"]
[null,null,"Konszignációs jele : BA-52a"]
[null,null,"Készül : ",7.28,"fm",null,null,{"$f":"ROUND(D377*F377, 0)","v":0},{"$f":"ROUND(D377*G377, 0)","v":0}]
[null,null,"MUNKANEM összesen :",{"$nulls":4},{"$f":"SUM(H248:H377)","v":0},{"$f":"SUM(I248:I377)","v":0}]
[]
[]
[null,"VÍZESBLOKK PARAVÁNFALAK ( BF JELŰ )"]
[null,"A MUNKANEM EGYÜTT KEZELENDŐ A KONSZIGNÁCIÓVAL ! "]
[null,1,"WC válaszfalrendszer legyártása és elhelyezése, konszignáció szerinti kialakatásban, vasalattal és felszereltséggel.                                                         Szerkezeti anyag : ES-SV C-13 kabinrendszer, 12 mm vastag compact műgyanta lap, állítható magasságú rozsdamentes acél lábakkal és padló rozetával, ajtónként 3 zsanérral, WC zárral.                                                            "]
[null,"1.1","WC fülke, 3 db ajtóval. Fiú WC."]
[null,null,"Előfal  mérete : 373  / 200 cm, benne 3 db ajtóval."]
[null,null,"Elválasztófal mérete : 88 / 200 cm, 2 db"]
[null,null,"Megjegyzés :  egyedi UNI 627 szín"]
[null,null,"Konszignációs jele: BF-04"]
[null,null,"Készül: ",3,"db     ",null,null,{"$f":"D389*F389","v":0},{"$f":"D389*G389","v":0}]
[null," 1.2","WC fülke, 4 db ajtóval. Lány WC."]
[null,null,"Előfal  mérete :  373 / 200 cm, benne 4 db ajtóval."]
[null,null,"Elválasztófal mérete : 124,5 / 200 cm, 3 db"]
[null,null,"Megjegyzés :  egyedi UNI 326 szín"]
[null,null,"Konszignációs jele: BF-5"]
[null,null,"Készül: ",3,"db     ",null,null,{"$f":"D395*F395","v":0},{"$f":"D395*G395","v":0}]
[null," 1.3","WC fülke, 1 db ajtóval. Férfi WC."]
[null,null,"Előfal  mérete :  131 / 200 cm, benne 1 db ajtóval."]
[null,null,"Oldalfal mérete : 88 / 200 cm, 1 db"]
[null,null,"Megjegyzés :  egyedi UNI 608 szín"]
[null,null,"Konszignációs jele: BF-6"]
[null,null,"Készül: ",3,"db     ",null,null,{"$f":"D401*F401","v":0},{"$f":"D401*G401","v":0}]
[null," 1.4","WC fülke, 2 db ajtóval. Férfi WC."]
[null,null,"Előfal  mérete :  291 / 200 cm, benne 2 db ajtóval."]
[null,null,"Megjegyzés :  egyedi UNI 608 szín"]
[null,null,"Konszignációs jele: BF-7"]
[null,null,"Készül: ",3,"db     ",null,null,{"$f":"D406*F406","v":0},{"$f":"D406*G406","v":0}]
[null,2,"Piszoár elválasztó paraván legyártása és elhelyezése, konszignáció szerinti kialakatásban, vasalattal és felszereltséggel.                                                         Szerkezeti anyag : ES-SV C-13 rendszer, 12 mm vastag compact műgyanta lap, állítható magasságú rozsdamentes acél lábakkal és padló rozetával.                                "]
[null," 2.1","Piszoár elválasztó paraván. Fiú WC-k."]
[null,null,"Mérete : 45 + 15 / 125 +15 cm."]
[null,null,"Megjegyzés :  egyedi UNI 627 szín"]
[null,null,"Konszignációs jele : BF-03a"]
[null,null,"Készül : ",12,"db",null,null,{"$f":"ROUND(D412*F412, 0)","v":0},{"$f":"ROUND(D412*G412, 0)","v":0}]
[null," 2.2","Piszoár elválasztó paraván. Férfi WC-k."]
[null,null,"Mérete : 60 / 185 +15 cm."]
[null,null,"Megjegyzés :  egyedi UNI 608 szín"]
[null,null,"Konszignációs jele : BF-03b"]
[null,null,"Készül : ",3,"db",null,null,{"$f":"ROUND(D417*F417, 0)","v":0},{"$f":"ROUND(D417*G417, 0)","v":0}]
[null,null,"MUNKANEM összesen :",{"$nulls":4},{"$f":"SUM(H389:H417)","v":0},{"$f":"SUM(I389:I417)","v":0}]
[]
[]
[null,"MOSDÓPULTOK ( BP JELŰ )"]
[null,"A MUNKANEM EGYÜTT KEZELENDŐ A KONSZIGNÁCIÓVAL ! "]
[null,1,"Mosdópult és szekrény legyártása és elhelyezése, konszignáció szerinti kialakatásban..                                                         Szerkezeti anyag :                                                                   40.40.3-as zártszelvény keret tartószerkezet, felületkezelve, 3 oldalon a falhoz dűbelezve.                                  Pult és előlap 10 mm vastag egyoldalán színezett kompaktlemez, EGGER UNIDECOR vagy vele azonos minőségű, fehér színben.                                                                                               Pultba épített mosdókagyló JYKA IBON 813011 típusú. A mosdókagyló körül és a falcsatlakozásoknál tartósan rugalmas szilikonos tömítéssel.                                           "]
[null," 1.1","Mosdópult 3 mosdóval. Fiú WC-k."]
[null,null,"Pult mérete : 208 / 60 cm, 3 db mosdóhely kivágással."]
[null,null,"Pult előlap mérete : 208 / 21 cm."]
[null,null,"Megjegyzés :  egyedi UNI 627 szín"]
[null,null,"Konszignációs jele : BP-04a"]
[null,null,"Készül : ",3,"db",null,null,{"$f":"ROUND(D429*F429, 0)","v":0},{"$f":"ROUND(D429*G429, 0)","v":0}]
[null," 1.2","Mosdópult 3 mosdóval. Lány WC-k."]
[null,null,"Pult mérete : 208 / 60 cm, 3 db mosdóhely kivágással."]
[null,null,"Pult előlap mérete : 208 / 21 cm."]
[null,null,"Megjegyzés :  egyedi UNI 326 szín"]
[null,null,"Konszignációs jele : BP-04b"]
[null,null,"Készül : ",3,"db",null,null,{"$f":"ROUND(D435*F435, 0)","v":0},{"$f":"ROUND(D435*G435, 0)","v":0}]
[null," 1.3","Mosdópult 2 mosdóval. Női WC-k."]
[null,null,"Pult mérete : 172,5 / 60 cm, 2 db mosdóhely kivágással."]
[null,null,"Pult előlap mérete : 172,5 / 21 cm."]
[null,null,"Megjegyzés :  egyedi UNI 326 szín"]
[null,null,"Konszignációs jele : BP-05"]
[null,null,"Készül : ",3,"db",null,null,{"$f":"ROUND(D441*F441, 0)","v":0},{"$f":"ROUND(D441*G441, 0)","v":0}]
[null," 1.4","Mosdópult 2 mosdóval. Férfi WC-k."]
[null,null,"Pult mérete : 197 / 60 cm, 2 db mosdóhely kivágással."]
[null,null,"Pult előlap mérete : 197 / 21 cm."]
[null,null,"Megjegyzés :  egyedi UNI 608 szín"]
[null,null,"Konszignációs jele : BP-06"]
[null,null,"Készül : ",3,"db",null,null,{"$f":"ROUND(D447*F447, 0)","v":0},{"$f":"ROUND(D447*G447, 0)","v":0}]
[null,null,"MUNKANEM összesen :",{"$nulls":4},{"$f":"SUM(H429:H447)","v":0},{"$f":"SUM(I429:I447)","v":0}]

{"sheet":"I.B ütem ELŐLAP","index":3,"n_rows":44,"n_cols":4,"rows_kept":44,"merged":[[27,2,27,5],[28,2,28,5],[29,2,29,5],[30,2,30,5],[31,2,31,5],[34,3,34,5],[35,3,35,5],[36,3,36,5],[39,3,39,5],[43,3,43,5]]}
{"$rows_empty":27}
[null,null,"TÉTELES TERVEZŐI KÖLTSÉGVETÉS"]
[null,null,"KÉSZÜLT A 2112 VERESEGYHÁZ, FŐ ÚT 117-125 HRSZ: 58 SZÁM ALATT LÉTESÍTENDŐ"]
[null,null,"VERESEGYHÁZI KATOLIKUS GIMNÁZIUM"]
[null,null,"BELSŐÉPÍTÉSZETI  TENDERDOKUMENTÁCIÓJÁHOZ"]
[null,null,"I.B ÜTEM"]
[]
[]
[]
[null,null,"MEGBÍZÓ :","EGYHÁZMEGYEI KATOLIKUS ISKOLÁK FŐHATÓSÁGA"]
[{"$nulls":3},"2600 VÁC, MIGAZZI KRISTÓF TÉR 1."]
[]
[null,null,"TERVEZŐ :","TÉRLABOR KFT"]
[{"$nulls":3},"1116 BUDAPEST, HUNYADI M. ÚT 32 2/2."]
[]
[]
[]
[null,null,"KÉSZÜLT :","BUDAPEST, 2017. SZEPTEMBER 15."]

{"sheet":" I.B ütem Összesítő ","index":4,"n_rows":22,"n_cols":5,"rows_kept":22,"merged":[[4,1,4,4],[5,1,5,4],[6,1,6,4],[7,1,7,4],[8,1,8,4],[19,3,19,4],[20,3,20,4],[21,3,21,4]]}
[]
[]
[]
[]
[null,"KÖLTSÉGVETÉS MUNKANEM ÖSSZESÍTŐ"]
[null,{"$f":"'I.A ütem ELŐLAP'!C29","v":"KÉSZÜLT A 2112 VERESEGYHÁZ, FŐ ÚT 117-125 HRSZ: 58 SZÁM ALATT LÉTESÍTENDŐ"}]
[null,{"$f":"'I.A ütem ELŐLAP'!C30","v":"VERESEGYHÁZI KATOLIKUS GIMNÁZIUM"}]
[null,{"$f":"'I.A ütem ELŐLAP'!C31","v":"BELSŐÉPÍTÉSZETI  TENDERDOKUMENTÁCIÓJÁHOZ"}]
[null,{"$f":"'I.B ütem ELŐLAP'!C32","v":"I.B ÜTEM"}]
[]
[]
[]
[null,"Ssz","Munkanem megnevezése","Anyag összege","Díj összege"]
[null,1,"Burkolás belső térben ( falburkolatok )",{"$f":"'I.B ütem kv '!H25","v":0},{"$f":"'I.B ütem kv '!I25","v":0}]
[null,2,"Felületképzés ( színes falfelület )",{"$f":"'I.B ütem kv '!H33","v":0},{"$f":"'I.B ütem kv '!I33","v":0}]
[null,3,"Belsőépítészeti lakatos szerkezetek ( BL jelű )",{"$f":"'I.B ütem kv '!H44","v":0},{"$f":"'I.B ütem kv '!I44","v":0}]
[null,4,"Beépített bútorozás ( BA jelű )",{"$f":"'I.B ütem kv '!H142","v":0},{"$f":"'I.B ütem kv '!I142","v":0}]
[null,5,"Műkőszerkezetek ( BC jelű )",{"$f":"'I.B ütem kv '!H154","v":0},{"$f":"'I.B ütem kv '!I154","v":0}]
[null,null,"Nettó anyag és díj összesen :",{"$f":"SUM(D14:D18)","v":0},{"$f":"SUM(E14:E18)","v":0}]
[null,null,"Nettó anyag + díj összesen :",{"$f":"D19+E19","v":{"v":0,"d":"0 Ft"}}]
[null,null,"ÁFA 27 %",{"$f":"D20*0.27","v":{"v":0,"d":"0 Ft"}}]
[null,null,"Bruttó anyag + díj összesen :",{"$f":"ROUND(SUM(D20:D21),0)","v":{"v":0,"d":"0 Ft"}}]

{"sheet":"I.B ütem kv ","index":5,"n_rows":154,"n_cols":9,"rows_kept":154,"merged":[[1,1,1,8],[2,1,2,8],[3,1,3,8],[4,1,4,8],[5,1,5,8],[9,1,9,8],[10,1,10,8],[11,1,11,8],[12,1,12,8],[27,1,27,8],[28,1,28,8],[29,1,29,8],[35,1,35,8],[36,1,36,8],[37,1,37,8],[38,1,38,8],[46,1,46,8],[47,1,47,8],[144,1,144,8],[145,1,145,8]],"headers":{"footer":["",".oldal"]}}
[]
[null,"TÉTELES TERVEZŐI KÖLTSÉGVETÉS"]
[null,{"$f":"'I.A ütem ELŐLAP'!C29","v":"KÉSZÜLT A 2112 VERESEGYHÁZ, FŐ ÚT 117-125 HRSZ: 58 SZÁM ALATT LÉTESÍTENDŐ"}]
[null,{"$f":"'I.A ütem ELŐLAP'!C30","v":"VERESEGYHÁZI KATOLIKUS GIMNÁZIUM"}]
[null,{"$f":"'I.A ütem ELŐLAP'!C31","v":"BELSŐÉPÍTÉSZETI  TENDERDOKUMENTÁCIÓJÁHOZ"}]
[null,{"$f":"' I.B ütem Összesítő '!B9:E9","v":"I.B ÜTEM"}]
[]
[null,"Ssz.","Tétel szövege","Menny.","Egység","Anyag egységár","Díj egységre","Anyag összesen","Díj    összesen"]
[]
[null,"BURKOLÁS BELSŐ TÉRBEN - FALBURKOLATOK"]
[null,"EGYÜTT KEZELENDŐ A MŰSZAKI SPECIFIKÁCIÓVAL ÉS A TERVEKKEL !"]
[null,"A BURKOLÓ ANYAGOK  CSAK BEMUTATOTT MINTA ALAPJÁN ÉPÍTHETŐK BE !"]
[null,"A MUNKANEM ÁRKÉPZÉSE TARTALMAZZA AZ ELHELYEZÉSHEZ SZÜKSÉGES SEGÉDSZERKEZETEK / ALAPOZÁS, KIEGYENLÍTÉS, RAGASZTÓK, FUGÁK / , TÖMÍTÉSEK, ÉLVÉDŐK STB.  ÁRÁT IS !"]
[null,"I.","EGYEDI FA FALBURKOLATOK "]
[null,1,"Parafa falburkolat elhelyezése  ( információs felület ).           100 mm-es forgácslap hátfalon 3 mm vtg                                    pl :WICANDERS Malta Moonligt parafa, lakkozva, 2 mm vtg alátét parafaréteggel ( össz vtg : 5 mm ) 2. jelű. ",94.52,"m2",null,null,{"$f":"ROUND(D15*F15, 0)","v":0},{"$f":"ROUND(D15*G15, 0)","v":0}]
[null,2,"Laminált forgácslap falburkolat elhelyezése.                         18 mm vastagságban, fehér színben, vízszintes stafnivázra szerelve, 5 mm-es látszóhézaggal sorolva, a hézagoknál élcsiszolva, az élek lakkozva, a szabadonálló élek kemányfából, lakkozva. 5. jelű. ",128.61,"m2",null,null,{"$f":"ROUND(D16*F16, 0)","v":0},{"$f":"ROUND(D16*G16, 0)","v":0}]
[null,3,"Rétegelt lemez falburkolat elhelyezése.                                    18 mm vtg. natúr fenyő rétegelt lemez, pácolva, 2 réteg matt lakkal felületkezelve. 11. jelű. ",8.54,"m2",null,null,{"$f":"ROUND(D17*F17, 0)","v":0},{"$f":"ROUND(D17*G17, 0)","v":0}]
[null,4,"Rétegelt lemez falburkolat elhelyezése.                                         18 mm vtg. csúszásmentesített nyír rétegelt lemez, hatszögletű struktúrájú csúszásmentesített fenolfilm felülettel, natúr film hátoldallal. Pl : Pannon-Falap HEXA,  szürke színben. 7. jelű. ",10.18,"m2",null,null,{"$f":"ROUND(D18*F18, 0)","v":0},{"$f":"ROUND(D18*G18, 0)","v":0}]
[null,5,"Rétegelt lemez falburkolat elhelyezése.                                         18 mm vtg. csúszásmentesített nyír rétegelt lemez, kör mintázatú, csúszásmentesített fenolfilm felülettel, natúr film hátoldallal. Pl : Pannon-Falap METSA TOP,  fekete színben. 8. jelű. ",7.31,"m2",null,null,{"$f":"ROUND(D19*F19, 0)","v":0},{"$f":"ROUND(D19*G19, 0)","v":0}]
[null,"II.","EGYÉB FALBURKOLATOK "]
[null,6,"10 mm vtg. forgácslap hátfalon festett fekete krétatábla. Trinát Skolatex vizes bázisú, oldószer nélküli, matt vízálló táblafesték, fekete színben. 6. jelű. ",51.04,"m2",null,null,{"$f":"ROUND(D21*F21, 0)","v":0},{"$f":"ROUND(D21*G21, 0)","v":0}]
[null,7,"Krétatábla. ( szín kiviteli terv szerint ). Pentart Chalboard Paint táblafesték, falra felhordva. 6a. jelű. ",28.27,"m2",null,null,{"$f":"ROUND(D22*F22, 0)","v":0},{"$f":"ROUND(D22*G22, 0)","v":0}]
[null,8,"Krétatábla. Trinát Skolatex vizes bázisú, oldószer nélküli, matt vízálló táblafesték, fekete színben, falra felhordva. 6b. jelű. ",2.43,"m2",null,null,{"$f":"ROUND(D23*F23, 0)","v":0},{"$f":"ROUND(D23*G23, 0)","v":0}]
[null,9,"Egyedi posztertapéta elhelyezése. Vinyl tapéta, egyedi grafikával, latex nyyomási technológiával. 4. jelű.",33.79,"m2",null,null,0,0]
[null,null,"MUNKANEM összesen :",{"$nulls":4},{"$f":"SUM(H14:H24)","v":0},{"$f":"SUM(I14:I24)","v":0}]
[]
[]
[null,"FELÜLETKÉPZÉS"]
[null,"A MUNKANEM EGYÜTT KEZELENDŐ A SPECIFIKÁCIÓVAL ÉS AZ IDEVONATKOZÓ TERVEKKEL !"]
[null,"AZ ASZTALOS ÉS A LAKATOS MUNKÁK FELÜLETKÉZÉSE AZ ADOTT MUNKANEMNNÉL SZEREPEL !"]
[null,1,"Mosható falfestés glettelt felületen, három rétegben, sima felületen. ( 3. jelű ).                                                                        Ajánlott típusa :  STOcolor Opticryl Satinmatt vagy vele azonos minőségű belsőtéri falfesték, ( egyedi színterv szerint folyosón, a szín a kiviteli terv része )",29.22,"m2",null,null,{"$f":"ROUND(D31*F31, 0)","v":0},{"$f":"ROUND(D31*G31, 0)","v":0}]
[null,2,"Mosható falfestés glettelt felületen, három rétegben, sima felületen.                                                                      Ajánlott típusa :  STOcolor Opticryl Satinmatt vagy vele azonos minőségű belsőtéri falfesték, ( egyedi színterv szerint tantermekben, a szín a kiviteli terv része)",35.57,"m2",null,null,{"$f":"ROUND(D32*F32, 0)","v":0},{"$f":"ROUND(D32*G32, 0)","v":0}]
[null,null,"MUNKANEM összesen :",{"$nulls":4},{"$f":"SUM(H31:H32)","v":0},{"$f":"SUM(I31:I32)","v":0}]
[]
[]
[null,"LAKATOS SZERKEZETEK ( BL JELŰ )"]
[null,"A MUNKANEM EGYÜTT KEZELENDŐ A KONSZIGNÁCIÓVAL  ! "]
[null,"AZ EGYSÉGÁR TARTALMAZZA AZ ELHELYEZÉSHEZ SZÜKSÉGES SEGÉDSZERKEZETEK, KÖTŐELEMEK, A TAKARÁS, TÖMÍTÉS ÁRÁT IS !"]
[null,"A LAKATOS SZERKEZETEK EGYSÉGÁRÁBA BELEÉRTENDŐ A VÉGLEGES FELÜLETKEZELÉS IS !"]
[null,1,"Egyedi kivitelű pad vázszerkezet legyártása és elhelyezése ( lépcsőházban  )"]
[null,null,"Kialakítása : konszignáció szerint.                                                Fő anyag jellemzők : 40.40.3 és 20.20.3-es zártszelvény hegesztett vázszerkezet, végleges felületképzéssel. A BC-01 műkő elemmel összeépítendő. Befoglaló mérete :  sz=20-38 cm; m=50  cm, H=397,5 cm"]
[null,null,"Konszignációs jele : BL-04"]
[null,null,"Készül : ",3,"db",null,null,{"$f":"ROUND(D43*F43, 0)","v":0},{"$f":"ROUND(D43*G43, 0)","v":0}]
[null,null,"MUNKANEM összesen :",{"$nulls":4},{"$f":"SUM(H40:H43)","v":0},{"$f":"SUM(I40:I43)","v":0}]
[]
[]
[null,"BELSŐÉPÍTÉSZETI BÚTOROZÁS ( BA JELŰ )"]
[null,"A MUNKANEM EGYÜTT KEZELENDŐ A BELSŐÉPÍTÉSZETI TERVEKKEL ! "]
[null,1,"Folyosói beülő. Alagsor AL.1.03 közlekedő."]
[null,null,"Kialakítása : konszignáció szerint.                                                "]
[null,null,"Főjellemzők : "]
[null,null,"Szerkezeti anyag : 40.40.3 és 20.20.3 zártszelvény hegesztett vázszerkezet, felületkezelve. 18 mm vtg fenyő rétegelt lemez, látszó élekkel, R3 fózzal, 2 réteg vízbázisú matt lakkozással."]
[null,null,"Hátfal : ragasztott csúszásmentes nyír rétegelt lemez, PANNON falap-lemez HEXA szürke"]
[null,null,"Ülőfelület : KOSKIDECOR TRANSPARENT 18 mm vastag melamin fólia bevonatú rétegelt lemez.( 1,59 m2 )"]
[null,null,"Megjegyzés : a rétegelt lemez felületen cca. 0,5 m2 egyedi gravirozású felülettel."]
[null,null,"Kiegészítők : Kiegészítők : a bútor alá tolható acélvázas, rétegelt lemez borítású ülőke, 40 / 33 / 39 cm-es befoglaló mérettel ( 8 db )"]
[null,null,"Mérete : Maximális hossz = 457 cm , maximális magassága : 198 cm, szélessége : 35 cm. ( Ferde síkú )"]
[null,null,"Konszignációs jele : BA-01"]
[null,null,"Készül : ",1,"db",null,null,{"$f":"ROUND(D59*F59, 0)","v":0},{"$f":"ROUND(D59*G59, 0)","v":0}]
[null,2,"Erősített ablakpárkány, folyosói beülő.  Alagsor AL.1.03 közlekedő."]
[null,null,"Kialakítása : konszignáció szerint.                                                Főjellemzők : "]
[null,null,"Ülőfelület szerkezeti anyaga : KOSKIDECOR TRANSPARENT 18 mm vastag melamin fólia bevonatú rétegelt lemez. ( 0,90 m2 )."]
[null,null,"Frontlap szerkezeti anyaga : Laminált faforgácslap 18 mm vastag, fehér színben. ( 0,75 m2 ). A frontlap a falburkolattal együtt készül."]
[null,null,"Mérete : Hossz = 300 cm, magassága : 25 cm, ülőfelület szélessége : 30 cm. "]
[null,null,"Konszignációs jele : BA-02"]
[null,null,"Készül : ",2,"db",null,null,{"$f":"ROUND(D66*F66, 0)","v":0},{"$f":"ROUND(D66*G66, 0)","v":0}]
[null,3,"Tantermi szekrény. "]
[null,null,"Kialakítása : konszignáció szerint.                                                Főjellemzők : "]
[null,null,"Szerkezeti anyag : 18 mm-es KOSKIDEKOR ECO TRANSPARENT dekoratív rétegelt lemez áttetsző melamin bevonattal. Nyitott polchátfal kiviteli tervben meghatározott színben, frontok és oldallapok fehér színben. Belső korpusz fehér laminált bútorlap, ABS élzárással."]
[null,null,"Kiegészítők : üveg tolóajtó Kamex Vetrine 15 tolóajtó vasalattal, 4 db bútorzárral, foganytyúk : 30 mm-es átmérőjű kör lyuk a bútorlapba marva."]
[null,null,"Mérete : Hossz = 700 cm, magassága : 213 cm, szélessége : 40 cm."]
[null,null,"Konszignációs jele : BA-08"]
[null,null,"Készül : ",1,"db",null,null,{"$f":"ROUND(D73*F73, 0)","v":0},{"$f":"ROUND(D73*G73, 0)","v":0}]
[null,4,"Tantermi szekrény."]
[null,null,"Kialakítása : konszignáció szerint.                                                Főjellemzők : "]
[null,null,"Szerkezeti anyag : 18 mm-es KOSKIDEKOR ECO TRANSPARENT dekoratív rétegelt lemez áttetsző melamin bevonattal. Nyitott polchátfal kiviteli tervben meghatározott színben, frontok és oldallapok fehér színben. Belső korpusz fehér laminált bútorlap, ABS élzárással."]
[null,null,"Kiegészítők :  4 db bútorzárral, foganytyúk : 30 mm-es átmérőjű kör lyuk a bútorlapba marva."]
[null,null,"Mérete : Hossz = 250 cm, magassága : 300 cm, szélessége : 30 cm."]
[null,null,"Konszignációs jele : BA-12"]
[null,null,"Készül : ",12,"db",null,null,{"$f":"ROUND(D80*F80, 0)","v":0},{"$f":"ROUND(D80*G80, 0)","v":0}]
[null,5,"Folyosói beülő. Földszint 1.02, 1. emelet 1.103 közlekedő."]
[null,null,"Kialakítása : konszignáció szerint.                                                Főjellemzők : "]
[null,null,"Szerkezeti anyag : 40.40.3 és 20.20.3 zártszelvény hegesztett vázszerkezet, felületkezelve. 18 mm vtg fenyő rétegelt lemez, látszó élekkel, R3 fózzal, 2 réteg vízbázisú matt lakkozással."]
[null,null,"Hátfal : festett falfelület linólieum burkolattal."]
[null,null,"Ülőfelület : KOSKIDECOR TRANSPARENT 18 mm vastag melamin fólia bevonatú rétegelt lemez.( 2,20 m2 )"]
[null,null,"Megjegyzés : a rétegelt lemez felületen cca. 0,5 m2 egyedi gravirozású felülettel."]
[null,null,"Kiegészítők : a bútor alá tolható acélvázas, rétegelt lemez borítású ülőke, 40 / 40 / 39 cm-es befoglaló mérettel ( 8 db )"]
[null,null,"Mérete : Maximális hossz = 415 cm , maximális magassága : 196 cm, szélessége : 53 cm. ( Ferde síkú )"]
[null,null,"Konszignációs jele : BA-13"]
[null,null,"Készül : ",2,"db",null,null,{"$f":"ROUND(D90*F90, 0)","v":0},{"$f":"ROUND(D90*G90, 0)","v":0}]
[null,6,"Folyosói öltözőszekrény. "]
[null,null,"Kialakítása : konszignáció szerint.                                                Főjellemzők : "]
[null,null,"Szerkezeti anyag : 18 mm-es nyír rétegelt rétegelt lemez, PANNONFORM fehér malamin bevonattal, az ajtókon gravírozott számokkal."]
[null,null,"Kiegészítők :  4 db bútorzárral, szekrényenként 2-2 db fogas-akasztórúddal."]
[null,null,"Mérete : Hossz = 67 cm, magassága : 180 cm, szélessége : 50 cm."]
[null,null,"Konszignációs jele : BA-14"]
[null,null,"Készül : ",9,"db",null,null,{"$f":"ROUND(D97*F97, 0)","v":0},{"$f":"ROUND(D97*G97, 0)","v":0}]
[null,7,"Folyosói öltözőszekrény. "]
[null,null,"Kialakítása : konszignáció szerint.                                                Főjellemzők : "]
[null,null,"Szerkezeti anyag : 18 mm-es nyír rétegelt rétegelt lemez, PANNONFORM fehér malamin bevonattal, az ajtókon gravírozott számokkal."]
[null,null,"Kiegészítők :  6 db bútorzárral, szekrényenként 2-2 db fogas-akasztórúddal."]
[null,null,"Mérete : Hossz = 98,5 cm, magassága : 180 cm, szélessége : 50 cm."]
[null,null,"Konszignációs jele : BA-15"]
[null,null,"Készül : ",30,"db",null,null,{"$f":"ROUND(D104*F104, 0)","v":0},{"$f":"ROUND(D104*G104, 0)","v":0}]
[null,8,"Tantermi szekrény kézmosóval. "]
[null,null,"Kialakítása : konszignáció szerint.                                                Főjellemzők : "]
[null,null,"Szerkezeti anyag : 18 mm-es KOSKIDEKOR ECO TRANSPARENT dekoratív rétegelt lemez áttetsző melamin bevonattal. Nyitott polchátfal kiviteli tervben meghatározott színben, frontok és oldallapok fehér színben. Belső korpusz fehér laminált bútorlap, ABS élzárással."]
[null,null,"Kiegészítők :  bútorzárral, foganytyúk : 30 mm-es átmérőjű kör lyuk a bútorlapba marva."]
[null,null,"Kapcsoló kiegészítők : MARMY Serena 60x35 cm-es mosdókagyló ( gépészeti kv szerint ), mosdó alatt szemétbedovóval és szemetessel."]
[null,null,"Mérete : Hossz = 80 cm, magassága : 300 cm, szélessége : 30 cm."]
[null,null,"Konszignációs jele : BA-42"]
[null,null,"Készül : ",6,"db",null,null,{"$f":"ROUND(D112*F112, 0)","v":0},{"$f":"ROUND(D112*G112, 0)","v":0}]
[null,9,"Folyosói beülő. 1. emelet 1.02, 2. emelet 1.02."]
[null,null,"Kialakítása : konszignáció szerint.                                                "]
[null,null,"Főjellemzők : "]
[null,null,"Szerkezeti anyag : 40.40.3 és 20.20.3 zártszelvény hegesztett vázszerkezet, felületkezelve. 18 mm vtg fenyő rétegelt lemez, látszó élekkel, R3 fózzal, 2 réteg vízbázisú matt lakkozással."]
[null,null,"Hátfal : 15 mm-es ragasztott rétegelt lemez."]
[null,null,"Ülőfelület : KOSKIDECOR TRANSPARENT 18 mm vastag melamin fólia bevonatú rétegelt lemez.( 1,59 m2 )"]
[null,null,"Megjegyzés : a rétegelt lemez felületen cca. 0,5 m2 egyedi gravirozású felülettel."]
[null,null,"Mérete : Maximális hossz = 271 cm , maximális magassága : 240 cm, szélessége : 35 cm. ( Ferde síkú )"]
[null,null,"Konszignációs jele : BA-44"]
[null,null,"Készül : ",2,"db",null,null,{"$f":"ROUND(D122*F122, 0)","v":0},{"$f":"ROUND(D122*G122, 0)","v":0}]
[null,10,"Folyosói beülő"]
[null,null,"Kialakítása : konszignáció szerint.                                                Főjellemzők : "]
[null,null,"Szerkezeti anyag : 40.40.3 és 20.20.3 zártszelvény hegesztett vázszerkezet, felületkezelve. 18 mm vtg fenyő rétegelt lemez, látszó élekkel, R3 fózzal, 2 réteg vízbázisú matt lakkozással."]
[null,null,"Hátfal : festett falfelület linólieum burkolattal."]
[null,null,"Ülőfelület : KOSKIDECOR TRANSPARENT 18 mm vastag melamin fólia bevonatú rétegelt lemez.( 1 m2 )"]
[null,null,"Megjegyzés : a rétegelt lemez felületen cca. 0,5 m2 egyedi gravirozású felülettel."]
[null,null,"Kiegészítők : a bútor alá tolható acélvázas, rétegelt lemez borítású ülőke, 40/ 33 / 39 cm-es befoglaló mérettel ( 5 db )"]
[null,null,"Mérete :  hossz = 288 cm , magassága : 203 cm, szélessége :  35 cm."]
[null,null,"Konszignációs jele : BA-48"]
[null,null,"Készül : ",1,"db",null,null,{"$f":"ROUND(D132*F132, 0)","v":0},{"$f":"ROUND(D132*G132, 0)","v":0}]
[null,11,"Folyosói beülő. 2. emelet 1.03."]
[null,null,"Kialakítása : konszignáció szerint.                                                Főjellemzők : "]
[null,null,"Szerkezeti anyag : 40.40.3 és 20.20.3 zártszelvény hegesztett vázszerkezet, felületkezelve. 18 mm vtg fenyő rétegelt lemez, látszó élekkel, R3 fózzal, 2 réteg vízbázisú matt lakkozással."]
[null,null,"Hátfal : festett falfelület linólieum burkolattal."]
[null,null,"Ülőfelület : KOSKIDECOR TRANSPARENT 18 mm vastag melamin fólia bevonatú rétegelt lemez."]
[null,null,"Megjegyzés : a rétegelt lemez felületen cca. 0,5 m2 egyedi gravirozású felülettel."]
[null,null,"Mérete :  hossz = 415 cm , magassága : 196 cm, szélessége :35 cm"]
[null,null,"Konszignációs jele : BA-51"]
[null,null,"Készül : ",1,"db",null,null,{"$f":"ROUND(D141*F141, 0)","v":0},{"$f":"ROUND(D141*G141, 0)","v":0}]
[null,null,"MUNKANEM összesen :",{"$nulls":4},{"$f":"SUM(H59:H141)","v":0},{"$f":"SUM(I59:I141)","v":0}]
[]
[]
[null,"MŰKŐ SZERKEZETEK ( BC JELŰ )"]
[null,"A MUNKANEM EGYÜTT KEZELENDŐ A BELSŐÉPÍTÉSZETI TERVEKKEL ! "]
[null,1,"Egyedi műkőpad legyártása és elhelyezése"]
[null,null,"Kialakítása : konszignáció szerint.                                                Főjellemzők : "]
[null,null,"Szerkezeti anyagok : 2 cm vastag forgácslap háttérszerkezet, 2 cm vastag műkólap, 5 mm-es lekerekített éllel, a műkőlapből kimart szellőző nyílásokkal."]
[null,null,"Megjegyzés : A BL-04 lakatos szerkezettel összeépítendő."]
[null,null,"Mérete : hossz : 398 cm, szélesség : 50 + 8 cm."]
[null,null,"Konszignációs jele : BC-01"]
[null,null,"Készül : ",3,"db",null,null,{"$f":"ROUND(D153*F153, 0)","v":0},{"$f":"ROUND(D153*G153, 0)","v":0}]
[null,null,"MUNKANEM összesen :",{"$nulls":4},{"$f":"SUM(H153:H153)","v":0},{"$f":"SUM(I153:I153)","v":0}]

{"sheet":"II. ütem ELŐLAP ","index":6,"n_rows":44,"n_cols":4,"rows_kept":44,"merged":[[27,2,27,5],[28,2,28,5],[29,2,29,5],[30,2,30,5],[31,2,31,5],[34,3,34,5],[35,3,35,5],[36,3,36,5],[39,3,39,5],[43,3,43,5]]}
{"$rows_empty":27}
[null,null,"TÉTELES TERVEZŐI KÖLTSÉGVETÉS"]
[null,null,"KÉSZÜLT A 2112 VERESEGYHÁZ, FŐ ÚT 117-125 HRSZ: 58 SZÁM ALATT LÉTESÍTENDŐ"]
[null,null,"VERESEGYHÁZI KATOLIKUS GIMNÁZIUM"]
[null,null,"BELSŐÉPÍTÉSZETI  TENDERDOKUMENTÁCIÓJÁHOZ"]
[null,null,"II. ÜTEM"]
[]
[]
[]
[null,null,"MEGBÍZÓ :","EGYHÁZMEGYEI KATOLIKUS ISKOLÁK FŐHATÓSÁGA"]
[{"$nulls":3},"2600 VÁC, MIGAZZI KRISTÓF TÉR 1."]
[]
[null,null,"TERVEZŐ :","TÉRLABOR KFT"]
[{"$nulls":3},"1116 BUDAPEST, HUNYADI M. ÚT 32 2/2."]
[]
[]
[]
[null,null,"KÉSZÜLT :","BUDAPEST, 2017. SZEPTEMBER 15."]

{"sheet":"II. ütem Összesítő ","index":7,"n_rows":27,"n_cols":5,"rows_kept":27,"merged":[[4,1,4,4],[5,1,5,4],[6,1,6,4],[7,1,7,4],[8,1,8,4],[24,3,24,4],[25,3,25,4],[26,3,26,4]]}
[]
[]
[]
[]
[null,"KÖLTSÉGVETÉS MUNKANEM ÖSSZESÍTŐ"]
[null,{"$f":"'I.A ütem ELŐLAP'!C29","v":"KÉSZÜLT A 2112 VERESEGYHÁZ, FŐ ÚT 117-125 HRSZ: 58 SZÁM ALATT LÉTESÍTENDŐ"}]
[null,{"$f":"'I.A ütem ELŐLAP'!C30","v":"VERESEGYHÁZI KATOLIKUS GIMNÁZIUM"}]
[null,{"$f":"'I.A ütem ELŐLAP'!C31","v":"BELSŐÉPÍTÉSZETI  TENDERDOKUMENTÁCIÓJÁHOZ"}]
[null,{"$f":"'II. ütem ELŐLAP '!C32","v":"II. ÜTEM"}]
[]
[]
[]
[null,"Ssz","Munkanem megnevezése","Anyag összege","Díj összege"]
[null,1,"Belsőépítészeti falazások",{"$f":"'II. ütem kv'!H13","v":0},{"$f":"'II. ütem kv'!I13","v":0}]
[null,2,"Belsőépítészeti szárazépítés",{"$f":"'II. ütem kv'!H23","v":0},{"$f":"'II. ütem kv'!I23","v":0}]
[null,3,"Burkolás belső térben",{"$f":"'II. ütem kv'!H125","v":0},{"$f":"'II. ütem kv'!I125","v":0}]
[null,4,"Belsőépítészeti belső nyílászárók ( B jelű )",{"$f":"'II. ütem kv'!H304","v":0},{"$f":"'II. ütem kv'!I304","v":0}]
[null,5,"Felületképzés",{"$f":"'II. ütem kv'!H316","v":0},{"$f":"'II. ütem kv'!I316","v":0}]
[null,7,"Belsőépítészeti lakatos szerkezetek ( BL jelű )",{"$f":"'II. ütem kv'!H339","v":0},{"$f":"'II. ütem kv'!I339","v":0}]
[null,6,"Beépített bútorozás ( BA jelű )",{"$f":"'II. ütem kv'!H641","v":0},{"$f":"'II. ütem kv'!I641","v":0}]
[null,8,"Vízesblokk paravánfalak ( BF jelű )",{"$f":"'II. ütem kv'!H677","v":0},{"$f":"'II. ütem kv'!I677","v":0}]
[null,9,"Mosdópultok ( BP jelű )",{"$f":"'II. ütem kv'!H707","v":0},{"$f":"'II. ütem kv'!I707","v":0}]
[null,10,"Műkőszerkezetek ( BC jelű )",{"$f":"'II. ütem kv'!H719","v":0},{"$f":"'II. ütem kv'!I719","v":0}]
[null,null,"Nettó anyag és díj összesen :",{"$f":"SUM(D14:D23)","v":0},{"$f":"SUM(E14:E23)","v":0}]
[null,null,"Nettó anyag + díj összesen :",{"$f":"D24+E24","v":{"v":0,"d":"0 Ft"}}]
[null,null,"ÁFA 27 %",{"$f":"D25*0.27","v":{"v":0,"d":"0 Ft"}}]
[null,null,"Bruttó anyag + díj összesen :",{"$f":"ROUND(SUM(D25:D26),0)","v":{"v":0,"d":"0 Ft"}}]

{"sheet":"II. ütem kv","index":8,"n_rows":719,"n_cols":9,"rows_kept":719,"merged":[[1,1,1,8],[2,1,2,8],[3,1,3,8],[4,1,4,8],[5,1,5,8],[9,1,9,8],[15,1,15,8],[25,1,25,8],[26,1,26,8],[27,1,27,8],[28,1,28,8],[127,1,127,8],[128,1,128,8],[129,1,129,8],[130,1,130,8],[132,1,137,1],[138,1,143,1],[144,1,149,1],[150,1,155,1],[156,1,161,1],[162,1,167,1],[168,1,173,1],[174,1,179,1],[180,1,185,1],[186,1,191,1],[192,1,197,1],[198,1,203,1],[204,1,209,1],[210,1,215,1],[216,1,221,1],[222,1,227,1],[228,1,233,1],[234,1,239,1],[240,1,245,1],[246,1,251,1],[252,1,257,1],[258,1,263,1],[264,1,269,1],[270,1,275,1],[277,1,282,1],[292,1,296,1],[298,1,302,1],[306,1,306,8],[307,1,307,8],[308,1,308,8],[318,1,318,8],[319,1,319,8],[320,1,320,8],[321,1,321,8],[341,1,341,8],[342,1,342,8],[643,1,643,8],[644,1,644,8],[646,1,651,1],[652,1,657,1],[658,1,663,1],[664,1,669,1],[679,1,679,8],[680,1,680,8],[709,1,709,8],[710,1,710,8]],"headers":{"footer":["",".oldal"]}}
[]
[null,"TÉTELES TERVEZŐI KÖLTSÉGVETÉS"]
[null,{"$f":"'I.A ütem ELŐLAP'!C29","v":"KÉSZÜLT A 2112 VERESEGYHÁZ, FŐ ÚT 117-125 HRSZ: 58 SZÁM ALATT LÉTESÍTENDŐ"}]
[null,{"$f":"'I.A ütem ELŐLAP'!C30","v":"VERESEGYHÁZI KATOLIKUS GIMNÁZIUM"}]
[null,{"$f":"'I.A ütem ELŐLAP'!C31","v":"BELSŐÉPÍTÉSZETI  TENDERDOKUMENTÁCIÓJÁHOZ"}]
[null,{"$f":"'II. ütem ELŐLAP '!C32","v":"II. ÜTEM"}]
[]
[null,"Ssz.","Tétel szövege","Menny.","Egység","Anyag egységár","Díj egységre","Anyag összesen","Díj    összesen"]
[]
[null,"BELSŐÉPÍTÉSZETI FALAZÁS"]
[null,1,"Lábazati fal készítése 1 sor YTONG válaszfaltéglából, 10 cm vastagságban, 15 cm magassággal, öltözőszekrények  alatt.",37.95,"fm",null,null,{"$f":"ROUND(D11*F11, 0)","v":0},{"$f":"ROUND(D11*G11, 0)","v":0}]
[null,2,"Előtétfalak készítése YTONG válaszfaltéglából, 5 cm vastagságban, egyes folyosói szakaszokon.",53.13,"m2",null,null,0,0]
[null,null,"MUNKANEM összesen :",{"$nulls":4},{"$f":"SUM(H11:H12)","v":0},{"$f":"SUM(I11:I12)","v":0}]
[]
[]
[null,"BELSŐÉPÍTÉSZETI SZÁRAZÉPÍTÉS"]
[null,1,"Gipszkarton előtétfalak készítése vízesblokkban, falba épített WC tartályoknál, CW vázszerkezetre szerelt 2 réteg 12,5 mm-es impregnált gipszkarton lemez.",{"$f":"(0.8+3.28+1.7)*1.2*4","v":27.744},"m2",null,null,{"$f":"ROUND(D17*F17, 0)","v":0},{"$f":"ROUND(D17*G17, 0)","v":0}]
[null,2,"Gipszkarton elburkolások készítése, CW vagy fa  vázszerkezetre szerelt 1 réteg normál gipszkarton lemez, a jelzett helyeken a bútorok körül.",76.45,"m2",null,null,0,0]
[null,3,"Gipszkartin szoknyafal készítése étteremben, fém tartóváz szerkezeten 1x1 réteg normál 12,5 mm-es gipszkarton lap burkolattal",2.47,"m2",null,null,{"$f":"ROUND(D19*F19, 0)","v":0},{"$f":"ROUND(D19*G19, 0)","v":0}]
[null,null,"ÁLMENNYEZETEK ÉPÍTÉSZETI TERVEK SZERINT"]
[null,4,"Szerelt gipszkarton álmennyezet fém vázszerkezetre, választható ( rugós ) függesztéssel, csavarfejek és illesztések alapglettelve (Q2 minőségben),  1 rtg. 12,5 mm vtg. gipszkarton borítással, a szükséges helyeken revíziós nyílásokkal, valamint a gépészeti berendezések és a lámpahelyek kivágásával."]
[null,5,"Akusztikus, szerelt gipszkarton álmennyezet készítése, fém vázszerkezetre, csavarfejek és illesztések glettelve (Q2 minőségben), Típusa : Rigitone Actív Air 15/30. Étteremben."]
[null,null,"MUNKANEM összesen :",{"$nulls":4},{"$f":"SUM(H17:H22)","v":0},{"$f":"SUM(I17:I22)","v":0}]
[]
[]
[null,"BURKOLÁS BELSŐ TÉRBEN "]
[null,"EGYÜTT KEZELENDŐ A MŰSZAKI SPECIFIKÁCIÓVAL ÉS A TERVEKKEL !"]
[null,"A BURKOLÓ ANYAGOK  CSAK BEMUTATOTT MINTA ALAPJÁN ÉPÍTHETŐK BE !"]
[null,"A MUNKANEM ÁRKÉPZÉSE TARTALMAZZA AZ ELHELYEZÉSHEZ SZÜKSÉGES SEGÉDSZERKEZETEK / ALAPOZÁS, KIEGYENLÍTÉS, RAGASZTÓK, FUGÁK / , TÖMÍTÉSEK, ÉLVÉDŐK STB.  ÁRÁT IS !"]
[null,"I.","PADLÓBURKOLATOK"]
[null,1,"Öntött betonpadló burkolat készítése ( 2-es típus )"]
[null,null,"Ajánlott típusa ( vagy vele műszakilag egyenérkékű ): DUROSTONE DUROFLOW nagy teherbírású, önterrülő padlóhabarcs, 1 cm összvastagságban, amely áll : "]
[null,null,"aljzatelőkészítés: Duroprimer 2 rétegben"]
[null,null,"padlóhabarcs: Doroflow 6-10 mm vastagságban"]
[null,null,"felületvédelem: Durocuring ideiglenes párazárás"]
[null,null,"felületképzés: Harmony Vernis Prémium 2K rugalmas, kopásálló lakk"]
[null,null,"Készül : ( aula, folyosók, étterem, lépcsőelőtér )",1329.14,"m2",null,null,{"$f":"ROUND(D37*F37, 0)","v":0},{"$f":"ROUND(D37*G37, 0)","v":0}]
[null,2,"Öntött betonpadló burkolat készítése ( 3-as típus )"]
[null,null,"Ajánlott típusa ( vagy vele műszakilag egyenérkékű ): DUROSTONE HARMONY glettbeton, 1 cm összvastagságban, amely áll : "]
[null,null,"önterülő aljzatkiegyenlítés szükséges, nagyobb felületnél üvegszövet hálóval az első rétegben"]
[null,null,"alapozás: Harmony Prim, 1-2 rétegben"]
[null,null,"padlóhabarcs: Harmony Glettbeton 2 komponensű habarcs, 2 rétegben, 2 mm vastagságban"]
[null,null,"csiszolás"]
[null,null,"pórustömítés: Harmony Pórustömító 1 rétegben"]
[null,null,"felületképzés: Harmony Vernish Prémium 2K poliuretán lakk, 2 rétegben"]
[null,null,"Készül : ( rajzterem )",69.7,"m2",null,null,{"$f":"ROUND(D46*F46, 0)","v":0},{"$f":"ROUND(D46*G46, 0)","v":0}]
[null,3,"Öntött betonpadló burkolat készítése ( 4-e típus )"]
[null,null,"Ajánlott típusa ( vagy vele műszakilag egyenérkékű ): DUROSTONE DUROFLOW nagy teherbírású, önterrülő habarcs, 1 cm összvastagságban, saválló bevonattal, amely áll : "]
[null,null,"aljzatelőkészítés: Duroprimer 2 rétegben"]
[null,null,"padlóhabarcs: Doroflow 6-10 mm vastagságban"]
[null,null,"felületvédelem: Durocuring ideiglenes párazárás"]
[null,null,"felületképzés: Durosmart Floor Protect S egykomponensű hibrid silan polimer lakk, fényes hatású, csúszásmentes bevonat, sav-, olaj és lúgálló, 2 rétegben"]
[null,null,"pórustömítés: Harmony Pórustömító 1 rétegben"]
[null,null,"felületképzés: Harmony Vernish Prémium 2K poliuretán lakk, 2 rétegben"]
[null,null,"Készül : ( kémiai labor )",83.4,"m2",null,null,{"$f":"ROUND(D55*F55, 0)","v":0},{"$f":"ROUND(D55*G55, 0)","v":0}]
[null,4,"Linóleum padlóburkolat, egyszínű, ( 1. típus)"]
[null,null,"Ajánlott típusa ( vagy vele műszakilag egyenérkékű ): FORBO MARMOLEUM REAL/FRESCO/VIVACE, 2,5 mm vtg., amely áll : "]
[null,null,"aljzatkiegyenlítés (pl. Forbo 044 alapozó, Forbo 975 aljzatkiegyenlítő)"]
[null,null,"linóleum, felületfolytonosan hegesztve, ragasztva (Forbo 610)"]
[null,null,"Javasolt színek: Fresco 3882 relaxing lagoon, Real 3238 laguna, Fresco 3828 blue heaven"]
[null,null,"Készül : ( általános tantermek )",382.4,"m2",null,null,{"$f":"ROUND(D61*F61, 0)","v":0},{"$f":"ROUND(D61*G61, 0)","v":0}]
[null,5,"Linóleum padlóburkolat, egyszínű, ( 2. típus)"]
[null,null,"Ajánlott típusa ( vagy vele műszakilag egyenérkékű ): FORBO MARMOLEUM STRIATO COLOUR, 2,5 mm vtg., amely áll : "]
[null,null,"aljzatkiegyenlítés (pl. Forbo 044 alapozó, Forbo 975 aljzatkiegyenlítő)"]
[null,null,"linóleum, felületfolytonosan hegesztve, ragasztva (Forbo 610)"]
[null,null,"Javasolt színek: 5221 colour stream, 5241, sunshine yellow, 5242 red roses, 5243 peacock blue"]
[null,null,"Készül :  kiemelt tantermek ",80.7,"m2",null,null,{"$f":"ROUND(D67*F67, 0)","v":0},{"$f":"ROUND(D67*G67, 0)","v":0}]
[null,6,"Linóleum padlóburkolat, egyszínű, ( 3. típus)"]
[null,null,"Ajánlott típusa ( vagy vele műszakilag egyenérkékű ): FORBO MARMOLEUM REAL/FRESCO/VIVACE, 2,5 mm vtg., amely áll : "]
[null,null,"aljzatkiegyenlítés (pl. Forbo 044 alapozó, Forbo 975 aljzatkiegyenlítő)"]
[null,null,"linóleum, felületfolytonosan hegesztve, ragasztva (Forbo 610)"]
[null,null,"A terem padlóburkolata egyszerű, de egyedi minta alapján több szín felhasználásával készül. Javasolt színek: Fresco 3882 relaxing lagoon, Real 3238 laguna, Fresco 3828 blue heaven"]
[null,null,"Készül : egyedi bútorozású tantermek ",211.2,"m2",null,null,{"$f":"ROUND(D73*F73, 0)","v":0},{"$f":"ROUND(D73*G73, 0)","v":0}]
[null,7,"Ragasztott parketta padlóburkolat ( 2. típus )"]
[null,null,"Amely áll : "]
[null,null,"aljzatkiegyenlítés"]
[null,null,"rétegelt tölgy keményfa parketta, 15 mm vastag, ( rétegelt fenyő + 3-4 mm-es tögy felület, hézagolva, ragasztva, padlófűtésre alkalmas kivitelben"]
[null,null,"olajozott felületképzés"]
[null,null,"Készül : kápolna és előtér",137.5,"m2",null,null,{"$f":"ROUND(D79*F79, 0)","v":0},{"$f":"ROUND(D79*G79, 0)","v":0}]
[null,8,"Csúszásmentes greslap padlóburkolat ragasztva, fugázva ( 1. típus )"]
[null,null,"Ajánlott típusa ( vagy vele műszakilag egyenérkékű ):        Zalakerámia CEMENTI ZRG 607 vagy ZGD 60607 típus, 30x60 cm méretben, matt szürke színben. Kopásállóság : min. PEI 4, csúszamentesség : min. R10."]
[null,null,"Készül : vízesblokkok",139.3,"m2",null,null,{"$f":"ROUND(D82*F82, 0)","v":0},{"$f":"ROUND(D82*G82, 0)","v":0}]
[null,9,"Csúszásmentes greslap padlóburkolat ragasztva, fugázva ( 2. típus )"]
[null,null,"Ajánlott típusa ( vagy vele műszakilag egyenérkékű ):        Zalakerámia ARCHITECT TAURUS GRANIT TAA35076 76S típus, 30x30 cm méretben, matt szürke színben. Kopásállóság : min. PEI 4, csúszamentesség : min. R10."]
[null,null,"Készül : konyha, raktárak, alárendelt helyek",271.62,"m2",null,null,{"$f":"ROUND(D85*F85, 0)","v":0},{"$f":"ROUND(D85*G85, 0)","v":0}]
[null,10,"Lépcsőburkolat készítése ( 1-es típus ) Előregyártott beton ( műkő ) lapok, terrazzo."]
[null,10,"Ajánlott típusa ( vagy vele műszakilag egyenérkékű ): DUROSTONE, DUROCOLOR TERAZZO, terrazzo 2 cm-es összvastagsággal. Felületkeményítő premix, pigmentált, speciális színes szemcsékkel dúsított, szárazhabarcsból, a belépő felületének első 5 cm-es sávja eltérő színezéssel, csúszásmentesített felületképzéssel, kopásállóság: A6, szemcseméret: 0-5 mm, rétegvastagság 6-15 mm.\n"]
[null," 10.1","Készül : ( járólap )",168,"fm",null,null,{"$f":"ROUND(D88*F88, 0)","v":0},{"$f":"ROUND(D88*G88, 0)","v":0}]
[null," 10.2","Készül : ( homloklap )",192,"fm",null,null,0,0]
[null,11,"Szennyfogó szőnyeg elhelyezése "]
[null," 11.1","Ajánlott típusa ( vagy vele műszakilag egyenérkékű ): HAGO COMBICLEAM BUSH 12, Nova fekete sörték, 01 anttracit tűfilc betéttel.",4.3,"m2",null,null,{"$f":"ROUND(D91*F91, 0)","v":0},{"$f":"ROUND(D91*G91, 0)","v":0}]
[null,"II.","LÁBAZATOK"]
[null,12,"Műkő lábazat, 8 mm vastagságban, 15 cm-es magassággal, Durosstone, fehér színben. "]
[null,null,"Készül : betonpadlós helyiségekben, lépcsőházakban",731.65,"fm",null,null,{"$f":"ROUND(D94*F94, 0)","v":0},{"$f":"ROUND(D94*G94, 0)","v":0}]
[null,13,"Rétegelt lemez lábazat, 15 mm vastagságban, 15 cm-es magassággal, r=3 mm-es fózzal, fehér páccal és 2 réteg matt vízesbázisú  lakkal felületkezelve, szilikonprofilba ültetve."]
[null,null,"Készül : linóleum burkolatos helyiségekben",380.49,"fm",null,null,{"$f":"ROUND(D96*F96, 0)","v":0},{"$f":"ROUND(D96*G96, 0)","v":0}]
[null,14,"Rétegelt lemez lábazat, 15 mm vastagságban, 15 cm-es magassággal, r=3 mm-es fózzal, fehér páccal és 2 réteg matt vízesbázisú  lakkal felületkezelve, szilikonprofil nélkül ."]
[null,null,"Készül : parketta burkolatos helyiségekben",57.96,"fm",null,null,{"$f":"ROUND(D98*F98, 0)","v":0},{"$f":"ROUND(D98*G98, 0)","v":0}]
[null,15,"Vágott greslap lábazat, 15 cm-es magassággal, a padlóburkolat anyagával megegyező anyaggal"]
[null,null,"Készül : greslap ( 2. típus ) burkolatos helyiségekben",202.27,"fm",null,null,{"$f":"ROUND(D100*F100, 0)","v":0},{"$f":"ROUND(D100*G100, 0)","v":0}]
[null,"III.","KERÁMIA  FALBURKOLATOK"]
[null,16,"Csempe falburkolat készítése ragasztva, fugázva, a szükséges helyeken élvédőzve.                                              Ajánlott típusa : ZALAKERÁMIA ARCHITECT CARNEVÁL ZBK 53001 vagy vele műszakilag egyenértékű, 20x50 cm-es méretben, fényes fehér színben, vízesblokkokban. ",496.03,"m2",null,null,{"$f":"ROUND(D102*F102, 0)","v":0},{"$f":"ROUND(D102*G102, 0)","v":0}]
[null,17,"Csempe falburkolat készítése ragasztva, fugázva, a szükséges helyeken élvédőzve.                                              Ajánlott típusa : ZALAKERÁMIA ARCHITECT CARNEVÁL ZBR 502 vagy vele műszakilag egyenértékű, 20x20 cm-es méretben, matt fehér színben, konyhában, tantermekben, alárendelt helyeken.",452.48,"m2",null,null,0,0]
[null,18,"Csempe falburkolat készítése ragasztva, fugázva, a szükséges helyeken élvédőzve.                               Ajánlott típusa: TUBABZIN ALL IN WHITE hullámmintás struktúrával, 30x60 cm méretben, matt fehér színben, étteremben. 1. jelű. ",4.96,"m2",null,null,{"$f":"ROUND(D104*F104, 0)","v":0},{"$f":"ROUND(D104*G104, 0)","v":0}]
[null,19,"Burkolat síkjába ragasztott tükör vízesblokokban.",18.58,"m2",null,null,{"$f":"ROUND(D105*F105, 0)","v":0},{"$f":"ROUND(D105*G105, 0)","v":0}]
[null,"IV.","EGYEDI FA FALBURKOLATOK "]
[null,20,"Parafa falburkolat elhelyezése  ( információs felület ).           100 mm-es forgácslap hátfalon 3 mm vtg                                    pl :WICANDERS Malta Moonligt parafa, lakkozva, 2 mm vtg alátét parafaréteggel ( össz vtg : 5 mm ) 2. jelű. ",{"$f":"29.2+43.94","v":73.14},"m2",null,null,{"$f":"ROUND(D107*F107, 0)","v":0},{"$f":"ROUND(D107*G107, 0)","v":0}]
[null,21,"Laminált forgácslap falburkolat elhelyezése.                         18 mm vastagságban, fehér színben, vízszintes stafnivázra szerelve, 5 mm-es látszóhézaggal sorolva, a hézagoknál élcsiszolva, az élek lakkozva, a szabadonálló élek kemányfából, lakkozva. 5. jelű. ",101.91,"m2",null,null,{"$f":"ROUND(D108*F108, 0)","v":0},{"$f":"ROUND(D108*G108, 0)","v":0}]
[null,22,"Rétegelt lemez falburkolat elhelyezése.                                    18 mm vtg. natúr fenyő rétegelt lemez, pácolva, 2 réteg matt lakkal felületkezelve. 11. jelű. ",{"$f":"6.04+22.06","v":28.099999999999998},"m2",null,null,{"$f":"ROUND(D109*F109, 0)","v":0},{"$f":"ROUND(D109*G109, 0)","v":0}]
[null,23,"Akusztikus rétegelt lemez falburkolat elhelyezése.                                         3 tétegű táblák, körfuratolt, nyír színfurnérozott felülettel, fekete akusztikus fríz hátoldallal, fa tartóvázszerkezettel, mögötte 2 cm vtg hanglágy kőzetgyapot szigeteléssel. Pl : Pannon-Falap ATMOPHON. 13. jelű. ",{"$f":"18.54+16.98","v":35.519999999999996},"m2",null,null,{"$f":"ROUND(D110*F110, 0)","v":0},{"$f":"ROUND(D110*G110, 0)","v":0}]
[null,"V.","LINÓLEUM FALBURKOLATOK "]
[null,24,"Linóleum falburkolat burkolat készítése ( egyszínű )                                             Ajánlott típusa ( vagy vele műszakilag egyenérkékű ):  FORBO MARMOLEUM Real/Fresco/Vivace, 2,5 mm vtg. Javasolt színek : Fresco 3882 relaxing lagoon, Real 3238 laguna, Fresco 3828 blue heaven. 1. típus.",48.2,"m2",null,null,{"$f":"ROUND(D112*F112, 0)","v":0},{"$f":"ROUND(D112*G112, 0)","v":0}]
[null,25,"Linóleum falburkolat burkolat készítése ( egyszínű )                                             Ajánlott típusa ( vagy vele műszakilag egyenérkékű ):  Ajánlott típusa ( vagy vele műszakilag egyenérkékű ): FORBO MARMOLEUM REAL/FRESCO/VIVACE, 2,5 mm vtg. 3. típus.",21.6,"m2",null,null,{"$f":"ROUND(D113*F113, 0)","v":0},{"$f":"ROUND(D113*G113, 0)","v":0}]
[null,26,"Linóleum falburkolat burkolat készítése (csíkos).                       Ajánlott típusa ( vagy vele műszakilag egyenérkékű ):  FORBO MARMOLEUM Striato colour, 2,5 mm vtg. Javasolt színek: 5221 colour stream, 5241, sunshine yellow, 5242 red roses, 5243 peacock blue. 2. típus,          9.-es jelű.",36.94,"m2",null,null,{"$f":"ROUND(D114*F114, 0)","v":0},{"$f":"ROUND(D114*G114, 0)","v":0}]
[null,"VI.","EGYÉB FALBURKOLATOK "]
[null,27,"10 mm vtg. forgácslap hátfalon festett fekete krétatábla. Trinát Skolatex vizes bázisú, oldószer nélküli, matt vízálló táblafesték, fekete színben. 6. jelű. ",{"$f":"21.68+20.56","v":42.239999999999995},"m2",null,null,{"$f":"ROUND(D116*F116, 0)","v":0},{"$f":"ROUND(D116*G116, 0)","v":0}]
[null,28,"Krétatábla. ( szín kiviteli terv szerint ). Pentart Chalboard Paint táblafesték, falra felhordva. 6a. jelű. ",3.31,"m2",null,null,{"$f":"ROUND(D117*F117, 0)","v":0},{"$f":"ROUND(D117*G117, 0)","v":0}]
[null,29,"Krétatábla. Trinát Skolatex vizes bázisú, oldószer nélküli, matt vízálló táblafesték, fekete színben, falra vagy fémlemezre felhordva. 6b. jelű. ",15.37,"m2",null,null,{"$f":"ROUND(D118*F118, 0)","v":0},{"$f":"ROUND(D118*G118, 0)","v":0}]
[null,30,"Egyedi posztertapéta elhelyezése. Vinyl tapéta, egyedi grafikával, latex nyyomási technológiával. 4. jelű.",8.34,"m2",null,null,0,0]
[null,"VII.","EGYÉB "]
[null,31,"Burkolatváltóprofil elhelyezése rozsdamentes kivitelben, a küszöb nélküli helyeken és a burkolat típus váltásoknál ",39.6,"fm",null,null,{"$f":"ROUND(D121*F121, 0)","v":0},{"$f":"ROUND(D121*G121, 0)","v":0}]
[null,32,"Dilatációs profil elhelyezése rozsdamentes kivitelben.",18.6,"fm",null,null,0,0]
[null,33,"Folyosói beton padlóburkolatban utólag gravírozott felíratok kialakítása ( kiviteli terv része )",5,"hely",null,null,0,0]
[null,34,"Aulában beton padlóburkolatban utólag gravírozott felíratok és minták kialakítása ( kiviteli terv része )",1,"klt",null,null,0,0]
[null,null,"MUNKANEM összesen :",{"$nulls":4},{"$f":"SUM(H37:H124)","v":0},{"$f":"SUM(I37:I124)","v":0}]
[]
[]
[null,"BELSŐ NYÍLÁSZÁRÓK ( B-JELŰ )"]
[null,"A MUNKANEM EGYÜTT KEZELENDŐ A KONSZIGNÁCIÓVAL  ! "]
[null,"AZ EGYSÉGÁR TARTALMAZZA AZ ELHELYEZÉSHEZ SZÜKSÉGES SEGÉDSZERKEZETEK ÁRÁT IS !"]
[null,"A BELSŐ AJTÓK CSAK A MEGRENDELŐNEK ÉS A TERVEZŐNEK  BEMUTATOTT MINTA ALAPJÁN ÉPÍTHETŐK BE !"]
[null,1,"Beltéri ajtók elhelyezése, konszignáció szerinti kialakatásban, vasalattal és felszereltséggel.                                                                               Tok : Utólag elhelyezhető  tüzihorganyzott acél  tok gyári alap felületkezelés, helyszíni fedőmázolás belsőépítészet szerinti színben. \nSzárny: HPL bevonatos ajtólap, furatolt faforgács vagy tömör faforgács betétes, gyári porszórt felületkezelés. A jelzett helyeken az ajtólap alatt 1 cm rés a szellőzésnek.\nKilincs, zár és vasalat típus, konszignáció szerint. Hoppe Paris 138 L vagy vele azonos minőségű rozsdamentes acél kilincs, rozettás, henger- vagy biztonsági zárral.\n"]
[null,"1.1","Tömör belsőajtó. Alagsori vízesblokk."]
[null,null,"Fő jellemzők : tok RAL 7035 színű átfogó acéltok, ajtólap furatolt forgács betétes, törtfehér színű HPL bevonattal, alul szellőzőréssel."]
[null,null,"Nyitása: egyszárnyú nyíló"]
[null,null,"Névleges mérete: 75 / 212,5  cm"]
[null,null,"Konszignációs jele: B-101"]
[null,null,"Készül: ",1,"db     ",null,null,{"$f":"D138*F138","v":0},{"$f":"D138*G138","v":0}]
[null," 1.2","Tömör belsőajtó. Alagsori mosléktároló."]
[null,null,"Fő jellemzők : tok RAL 7035 színű átfogó acéltok, ajtólap furatolt faforgács betétes, törtfehér színű HPL bevonattal, alul szellőzéssel."]
[null,null,"Nyitása: egyszárnyú nyíló"]
[null,null,"Névleges mérete: 75 / 212,5  cm"]
[null,null,"Konszignációs jele: B-102"]
[null,null,"Készül: ",1,"db     ",null,null,{"$f":"D144*F144","v":0},{"$f":"D144*G144","v":0}]
[null," 1.3","Tömör belsőajtó. Földszinti büfé."]
[null,null,"Fő jellemzők : tok RAL 7035 színű átfogó acéltok, ajtólap furatolt faforgács betétes, törtfehér színű HPL bevonattal."]
[null,null,"Nyitása: egyszárnyú nyíló"]
[null,null,"Névleges mérete: 75 / 212,5  cm"]
[null,null,"Konszignációs jele: B-103"]
[null,null,"Készül: ",1,"db     ",null,null,{"$f":"D150*F150","v":0},{"$f":"D150*G150","v":0}]
[null," 1.4","Tömör belsőajtó. Tantermek."]
[null,null,"Fő jellemzők : tok RAL 7035 színű acél saroktok, ajtólap tömör faforgácslap betétes, törtfehér színű HPL bevonattal, a közlekedő felé dekorációs betéttel, süllyesztett automata küszöbbel, 32 dB hanggátlással."]
[null,null,"Nyitása: egyszárnyú nyíló"]
[null,null,"Névleges mérete: 100 / 212,5  cm"]
[null,null,"Konszignációs jele: B-303"]
[null,null,"Készül: ",5,"db     ",null,null,{"$f":"D156*F156","v":0},{"$f":"D156*G156","v":0}]
[null," 1.5","Tömör belsőajtó. Általános ajtó."]
[null,null,"Fő jellemzők : tok RAL 7035 színű átfogó acéltok, ajtólap furatolt faforgács betétes, törtfehér színű HPL bevonattal."]
[null,null,"Nyitása: egyszárnyú nyíló"]
[null,null,"Névleges mérete: 100 / 212,5  cm"]
[null,null,"Konszignációs jele: B-305"]
[null,null,"Készül: ",4,"db     ",null,null,{"$f":"D162*F162","v":0},{"$f":"D162*G162","v":0}]
[null," 1.6","Tömör belsőajtó. Folyosói vízesblokkok."]
[null,null,"Fő jellemzők : tok RAL 7035 színű átfogó acéltok, ajtólap furatolt faforgács betétes, törtfehér színű HPL bevonattal, a közlekedő felé dekorációs betéttel, Dorma sines kitámasztható ajtócsukó."]
[null,null,"Nyitása: egyszárnyú nyíló"]
[null,null,"Névleges mérete: 100 / 212,5  cm"]
[null,null,"Konszignációs jele: B-306"]
[null,null,"Készül: ",8,"db     ",null,null,{"$f":"D168*F168","v":0},{"$f":"D168*G168","v":0}]
[null," 1.7","Tömör belsőajtó. Általános ajtó."]
[null,null,"Fő jellemzők : tok RAL 7035 színű átfogó acéltok, ajtólap furatolt faforgácslap betétes, törtfehér színű HPL bevonattal, alul szellőzőréssel."]
[null,null,"Nyitása: egyszárnyú nyíló"]
[null,null,"Névleges mérete: 100 / 212,5  cm"]
[null,null,"Konszignációs jele: B-307"]
[null,null,"Készül: ",13,"db     ",null,null,{"$f":"D174*F174","v":0},{"$f":"D174*G174","v":0}]
[null," 1.8","Tömör, üvegezett betétes belsőajtó. Alagsori tálaló."]
[null,null,"Fő jellemzők : tok RAL 7035 színű átfogó acéltok, ajtólap furatolt faforgács betétes, törtfehér színű HPL bevonattal, átm. 45 cm-es kör alakú, fix,  biztonsági üvegezésű betéttel."]
[null,null,"Nyitása: egyszárnyú nyíló"]
[null,null,"Névleges mérete: 100 / 212,5  cm"]
[null,null,"Konszignációs jele: B-308"]
[null,null,"Készül: ",1,"db     ",null,null,{"$f":"D180*F180","v":0},{"$f":"D180*G180","v":0}]
[null," 1.9","Tömör belsőajtó. Alagsori raktár."]
[null,null,"Fő jellemzők : tok RAL 7035 színű acél saroktok, ajtólap furatolt faforgács betétes, törtfehér színű HPL bevonattal."]
[null,null,"Nyitása: egyszárnyú nyíló"]
[null,null,"Névleges mérete: 100 / 212,5  cm"]
[null,null,"Konszignációs jele: B-309"]
[null,null,"Készül: ",1,"db     ",null,null,{"$f":"D186*F186","v":0},{"$f":"D186*G186","v":0}]
[null,"1.10","Tömör belsőajtó. Szertár, tanári."]
[null,null,"Fő jellemzők : tok RAL 7035 színű acél saroktok, ajtólap furatolt faforgácslap betétes, törtfehér színű HPL bevonattal, max. 2 cm magas küszöbbel."]
[null,null,"Nyitása: egyszárnyú nyíló"]
[null,null,"Névleges mérete: 100 / 212,5  cm"]
[null,null,"Konszignációs jele: B-311"]
[null,null,"Készül: ",5,"db     ",null,null,{"$f":"D192*F192","v":0},{"$f":"D192*G192","v":0}]
[null,"1.11","Tömör belsőajtó. Szertár, tanári."]
[null,null,"Fő jellemzők : tok RAL 7035 színű átfogó acéltok, ajtólap furatolt faforgács betétes, törtfehér színű HPL bevonattal, max. 2 cm magas küszöbbel."]
[null,null,"Nyitása: egyszárnyú nyíló"]
[null,null,"Névleges mérete: 100 / 212,5  cm"]
[null,null,"Konszignációs jele: B-312"]
[null,null,"Készül: ",3,"db     ",null,null,{"$f":"D198*F198","v":0},{"$f":"D198*G198","v":0}]
[null,"1.12","Mélyenüvegezett  belsőajtó. Porta."]
[null,null,"Fő jellemzők : tok RAL 7035 színű átfogó acéltok, ajtólap furatolt faforgács betétes, törtfehér színű HPL bevonattal, 1 réteg biztonsági üvegezéssel."]
[null,null,"Nyitása: egyszárnyú nyíló"]
[null,null,"Névleges mérete: 100 / 212,5  cm"]
[null,null,"Konszignációs jele: B-313"]
[null,null,"Készül: ",1,"db     ",null,null,{"$f":"D204*F204","v":0},{"$f":"D204*G204","v":0}]
[null,"1.13","Tömör belsőajtó. Énekterem."]
[null,null,"Fő jellemzők : tok RAL 7035 színű acél saroktok, ajtólap tömör faforgács betétes, törtfehér színű HPL bevonattal, a közlekedő felé dekorációs betéttel, süllyesztett automata küszöbbel, 42 dB hanggátlással."]
[null,null,"Nyitása: egyszárnyú nyíló"]
[null,null,"Névleges mérete: 100 / 212,5  cm"]
[null,null,"Konszignációs jele: B-314"]
[null,null,"Készül: ",1,"db     ",null,null,{"$f":"D210*F210","v":0},{"$f":"D210*G210","v":0}]
[null,"1.14","Tömör belsőajtó. 2. emeleti tanterem."]
[null,null,"Fő jellemzők : tok RAL 7035 színű átfogó acéltok, ajtólap tömör faforgács betétes, fehérített tölgy színű HPL bevonattal, a közlekedő felé dekorációs betéttel, süllyesztett automata küszöbbel, 32 dB hanggátlással."]
[null,null,"Nyitása: egyszárnyú nyíló"]
[null,null,"Névleges mérete: 100 / 212,5  cm"]
[null,null,"Konszignációs jele: B-315"]
[null,null,"Készül: ",1,"db     ",null,null,{"$f":"D216*F216","v":0},{"$f":"D216*G216","v":0}]
[null,"1.15","Tömör belsőajtó. Sekrestye."]
[null,null,"Fő jellemzők : tok RAL 7035 színű acél saroktok, ajtólap furatolt faforgács betétes, fehérített tölgy színű HPL bevonattal."]
[null,null,"Nyitása: egyszárnyú nyíló"]
[null,null,"Névleges mérete: 100 / 212,5  cm"]
[null,null,"Konszignációs jele: B-316"]
[null,null,"Készül: ",1,"db     ",null,null,{"$f":"D222*F222","v":0},{"$f":"D222*G222","v":0}]
[null,"1.16","Tömör belsőajtó. Akadálymentes WC."]
[null,null,"Fő jellemzők : tok RAL 7035 színű átfogó acéltok, ajtólap furatolt faforgácslap betétes, tört fehér színű HPL bevonattal, a közlekedő felé dekorációs betéttel, ajtóbehúzó karral, alul szellőzőréssel."]
[null,null,"Nyitása: egyszárnyú nyíló"]
[null,null,"Névleges mérete: 100 / 212,5  cm"]
[null,null,"Konszignációs jele: B-317"]
[null,null,"Készül: ",4,"db     ",null,null,{"$f":"D228*F228","v":0},{"$f":"D228*G228","v":0}]
[null,"1.17","Tömör belsőajtó. 1.-2. emeleti tantermek."]
[null,null,"Fő jellemzők : tok RAL 7035 színű átfogó acéltok, ajtólap tömör faforgács betétes, törtfehér színű HPL bevonattal, a közlekedő felé dekorációs betéttel, süllyesztett automata küszöbbel, 32 dB hanggátlással."]
[null,null,"Nyitása: egyszárnyú nyíló"]
[null,null,"Névleges mérete: 100 / 212,5  cm"]
[null,null,"Konszignációs jele: B-318"]
[null,null,"Készül: ",1,"db     ",null,null,{"$f":"D234*F234","v":0},{"$f":"D234*G234","v":0}]
[null,"1.18","Tömör belsőajtó. 1.-2. emeleti tantermek."]
[null,null,"Fő jellemzők : tok RAL 7035 színű  acél saroktok, ajtólap tömör  faforgács betétes, törtfehér színű HPL bevonattal, a közlekedő felé dekorációs betéttel, süllyesztett automata küszöbbel, 32 dB hanggátlással."]
[null,null,"Nyitása: egyszárnyú nyíló"]
[null,null,"Névleges mérete: 100 / 212,5  cm"]
[null,null,"Konszignációs jele: B-319"]
[null,null,"Készül: ",2,"db     ",null,null,{"$f":"D240*F240","v":0},{"$f":"D240*G240","v":0}]
[null,"1.19","Tömör belsőajtó. Étterem."]
[null,null,"Fő jellemzők : tok RAL 7035 színű  acél saroktok, ajtólap furatolt faforgács betétes, törtfehér színű HPL bevonattal."]
[null,null,"Nyitása: kétszárnyú, asszimetrikusan  nyíló"]
[null,null,"Névleges mérete: 180 / 270  cm"]
[null,null,"Konszignációs jele: B-401"]
[null,null,"Készül: ",2,"db     ",null,null,{"$f":"D246*F246","v":0},{"$f":"D246*G246","v":0}]
[null," 1.20","Tömör belsőajtó üvegbetéttel. Konyha."]
[null,null,"Fő jellemzők : tok RAL 7035 színű  átfogó acéltok, ajtólap furatolt faforgács betétes, törtfehér színű HPL bevonattal, átm. 45 cm-es kör alakú, fix,  biztonsági üvegezésű betéttel."]
[null,null,"Nyitása: kétszárnyú, asszimetrikusan  nyíló"]
[null,null,"Névleges mérete: 150 / 212,5  cm"]
[null,null,"Konszignációs jele: B-402"]
[null,null,"Készül: ",1,"db     ",null,null,{"$f":"D252*F252","v":0},{"$f":"D252*G252","v":0}]
[null," 1.21","Tömör belsőajtó. Takarítószer tároló."]
[null,null,"Fő jellemzők : tok RAL 7035 színű  átfogó acéltok, ajtólap furatolt faforgács betétes, törtfehér színű HPL bevonattal."]
[null,null,"Nyitása: kétszárnyú, középen nyíló"]
[null,null,"Névleges mérete: 140 / 212,5  cm"]
[null,null,"Konszignációs jele: B-403"]
[null,null,"Készül: ",1,"db     ",null,null,{"$f":"D258*F258","v":0},{"$f":"D258*G258","v":0}]
[null," 1.22","Tömör belsőajtó. Audió tanterem."]
[null,null,"Fő jellemzők : tok RAL 7035 színű acél saroktok, ajtólap tömör faforgács betétes, törtfehér színű HPL bevonattal, a közlekedő felé dekorációs betéttel, süllyeszett automata küszöbbel, 42 dB hanggátlással."]
[null,null,"Nyitása: kétszárnyú, asszimetrikusan  nyíló"]
[null,null,"Névleges mérete: 160 / 212,5  cm"]
[null,null,"Konszignációs jele: B-406"]
[null,null,"Készül: ",1,"db     ",null,null,{"$f":"D264*F264","v":0},{"$f":"D264*G264","v":0}]
[null," 1.23","Tömör belsőajtó. Kápolna."]
[null,null,"Fő jellemzők : tömör faforgács, HPL bevonatos tokszerkezettel, ajtólap tömör faforgács betétes, fehérített tölgydekor színű HPL bevonattal, rejtett vasalattal, 190 fokos nyitással."]
[null,null,"Nyitása:  kétszárnyú, szimmetrikusan  nyíló ajtó "]
[null,null,"Névleges mérete:  175 / 270 cm"]
[null,null,"Konszignációs jele: B-407"]
[null,null,"Készül: ",1,"db     ",null,null,{"$f":"D270*F270","v":0},{"$f":"D270*G270","v":0}]
[null," 1.24","Tömör belsőajtó. Kápolna."]
[null,null,"Fő jellemzők : tömör faforgács, HPL bevonatos tokszerkezettel, ajtólap furatolt faforgács betétes, fehérített tölgydekor színű HPL bevonattal, rejtett vasalattal, 180 fokos nyitással."]
[null,null,"Nyitása:  kétszárnyú, szimmetrikusan  nyíló ajtó "]
[null,null,"Névleges mérete: 175 / 270 cm"]
[null,null,"Konszignációs jele: B-408, 409"]
[null,null,"Készül: ",2,"db     ",null,null,{"$f":"D276*F276","v":0},{"$f":"D276*G276","v":0}]
[null,2,"Beltéri üvegajtó elhelyezése, konszignáció szerinti kialakatásban, vasalattal és felszereltséggel.                                                                               Tok : Alumínium tokszerkezete SCHÜCO ADS 60 vagy vele műszakilag egyenértékű alumínium, gyári porszórt RAL 7035 világosszürke színben.\nSzárny: SCHÜCO ADS 60 vagy vele műszakilag egyenértékű alumínium, gyári porszórt RAL 7035 világosszürke színben, 2 rétegű hőszigetelő üvegezéssel, az ajtónál biztonsági fóliázással.\nKilincs, zár és vasalat típus, konszignáció szerint illetve típus szerint.\n"]
[null," 2.1","Szélfogó ajtó."]
[null,null,"Fő jellemzők : 200 / 240 cm középen felnyíló ajtó, 200 / 108 cm-es fix felülvilágító, motoros ajtónyitó sorrend vezérléssel, belső oldalon pánikzárral"]
[null,null,"Nyitása: kétszárnyú, középen nyílóajtó, fix felülvilágító"]
[null,null,"Névleges mérete: 200 + 240 +108  cm"]
[null,null,"Konszignációs jele: B-404"]
[null,null,"Készül: ",1,"db     ",null,null,{"$f":"D283*F283","v":0},{"$f":"D283*G283","v":0}]
[null,3,"Beltéri térelválasztó tolófal elhelyezése, konszignáció szerinti kialakatásban, vasalattal és felszereltséggel.                                                                               Ajánlott típus : PARTHOS PALACE 90 vagy vele műszakilag egyenértékű. Anyaga : tokszerkezet  szinterezett alumínium sín ( felső sínvezetés, alsó megvezetés ), szárnyak EGGER 90 mm falvastagságú melanin burkolatú faelemek, egycsuklós felfüggesztéssel, parkolás a tolófal síkjában, egy oldalon, RAL 7035 világos szürke színben, kézi mozgatású, hanggátlás 46 dB."]
[null," 3.1","Névleges mérete: 720 / 348 cm"]
[null,null,"Konszignációs jele: B-505"]
[null,null,"Készül: ",1,"db     ",null,null,{"$f":"D287*F287","v":0},{"$f":"D287*G287","v":0}]
[null,4,"Beltéri térelválasztó tolófal elhelyezése, konszignáció szerinti kialakatásban, vasalattal és felszereltséggel.                                                                               Ajánlott típus : PARTHOS PALACE 90 vagy vele műszakilag egyenértékű. Anyaga : tokszerkezet  szinterezett alumínium sín ( felső sínvezetés, alsó megvezetés ), szárnyak EGGER 90 mm falvastagságú melanin burkolatú faelemek, egycsuklós felfüggesztéssel, parkolás a tolófal síkjában, egy oldalon, RAL 7035 világos szürke színben, kézi mozgatású, hanggátlás 37 dB."]
[null," 4.1","Névleges mérete: 400 / 300 cm"]
[null,null,"Konszignációs jele: B-506"]
[null,null,"Készül: ",1,"db     ",null,null,{"$f":"D291*F291","v":0},{"$f":"D291*G291","v":0}]
[null,5,"Beltéri üvegablak elhelyezése, konszignáció szerinti kialakatásban, vasalattal és felszereltséggel.                                                                               Tok : Alumínium tokszerkezet, gyári porszórt RAL 7035 világosszürke színben.\nSzárny: alumínium szerkezet, gyári porszórt RAL 7035 világosszürke színben, 2 rétegű hőszigetelő üvegezéssel.\nKilincs, zár és vasalat típus, konszignáció szerint illetve típus szerint.\n"]
[null," 5.1","Porta ablak"]
[null,null,"Nyitása: felfelé toló"]
[null,null,"Névleges mérete: 100 / 150 cm"]
[null,null,"Konszignációs jele: B-601"]
[null,null,"Készül: ",1,"db     ",null,null,{"$f":"D297*F297","v":0},{"$f":"D297*G297","v":0}]
[null,6,"Beltéri üvegablak elhelyezése, konszignáció szerinti kialakatásban.                                                                           Tok : Sajtolt köríves alumínium tokszerkezet, gyári porszórt RAL 7035 világosszürke színben.\nSzárny: 2 réteg biztonsági ( edzett ) üvegezéssel, 27 dB hanggátlással.\n"]
[null," 6.1","Kör ablak. 2. emeleti tanterem."]
[null,null,"Nyitása: fix"]
[null,null,"Névleges mérete: átmérő 60 cm."]
[null,null,"Konszignációs jele: B-602"]
[null,null,"Készül: ",1,"db     ",null,null,{"$f":"D303*F303","v":0},{"$f":"D303*G303","v":0}]
[null,null,"MUNKANEM összesen :",{"$nulls":4},{"$f":"SUM(H133:H303)","v":0},{"$f":"SUM(I133:I303)","v":0}]
[]
[]
[null,"FELÜLETKÉPZÉS"]
[null,"A MUNKANEM EGYÜTT KEZELENDŐ A SPECIFIKÁCIÓVAL ÉS AZ IDEVONATKOZÓ TERVEKKEL !"]
[null,"AZ ASZTALOS ÉS A LAKATOS MUNKÁK FELÜLETKÉZÉSE AZ ADOTT MUNKANEMNNÉL SZEREPEL !"]
[null,1,"Belső festéseknél felület előkészítése, részmunkák; glettelés, műanyag kötőanyagú glettel (simítótapasszal), vakolt  vagy gipszkarton felületen",{"$f":"D311+D312+D313+D314","v":{"v":8080.429999999999,"d":"8,080.43"}},"m2",null,null,{"$f":"ROUND(D310*F310, 0)","v":0},{"$f":"ROUND(D310*G310, 0)","v":0}]
[null,2,"Diszperziós festés műanyag bázisú vizes-diszperziós festékke, három rétegben, sima felületen. ( 10a ).                     Ajánlott típusa : STOcolor In vagy vele azonos minőségű belsőtéri falfesték, törtfehér színben. ",5628.54,"m2",null,null,0,0]
[null,3,"Mosható falfestés glettelt felületen, három rétegben, sima felületen. ( 10b ).                                                                        Ajánlott típusa :  STOcolor Opticryl Satinmatt vagy vele azonos minőségű belsőtéri falfesték, törtfehér fehér színben.",2223.1,"m2",null,null,{"$f":"ROUND(D312*F312, 0)","v":0},{"$f":"ROUND(D312*G312, 0)","v":0}]
[null,4,"Mosható falfestés glettelt felületen, három rétegben, sima felületen. ( 3. jelű ).                                                                        Ajánlott típusa :  STOcolor Opticryl Satinmatt vagy vele azonos minőségű belsőtéri falfesték, ( egyedi színterv szerint, folyosókkon, a szín a kiviteli terv része)",26.15,"m2",null,null,{"$f":"ROUND(D313*F313, 0)","v":0},{"$f":"ROUND(D313*G313, 0)","v":0}]
[null,5,"Diszperziós festés műanyag bázisú vizes-diszperziós festékke, három rétegben, sima felületen. ( 10c )                      Ajánlott típusa : STOColor Climasan vagy vele azonos minőségű belsőtéri szaglebontó falfesték, törtfehér fehér színben.",202.64,"m2",null,null,0,0]
[null,6,"Belső látszó faszerkezetek felületképzése. Ajánlott típus a: Polylack Wood Bianco Aqua vizes bázisú égéskésleltető festék.                                                                     Aulában, kápolnában, 1. emeleti 2.12 jelű tanteremben. ÉPÍTÉSZETI KÖLTSÉGVETÉSBEN SZEREPEL."]
[null,null,"MUNKANEM összesen :",{"$nulls":4},{"$f":"SUM(H310:H315)","v":0},{"$f":"SUM(I310:I315)","v":0}]
[]
[]
[null,"LAKATOS SZERKEZETEK ( BL JELŰ )"]
[null,"A MUNKANEM EGYÜTT KEZELENDŐ A KONSZIGNÁCIÓVAL  ! "]
[null,"AZ EGYSÉGÁR TARTALMAZZA AZ ELHELYEZÉSHEZ SZÜKSÉGES SEGÉDSZERKEZETEK, KÖTŐELEMEK, A TAKARÁS, TÖMÍTÉS ÁRÁT IS !"]
[null,"A LAKATOS SZERKEZETEK EGYSÉGÁRÁBA BELEÉRTENDŐ A VÉGLEGES FELÜLETKEZELÉS IS !"]
[null,1,"Egyedi kivitelű lépcsőkorlát  legyártása és elhelyezése ( ferde szakasz )"]
[null,null,"Kialakítása : konszignáció szerint.                                                Fő anyag jellemzők : átmérő 50 mm-es és átmétő 20 mm-es szálcsiszolt rozsdamentes acél, átmérő 50 mm-es lakkozott keményfa fogódzóval, sarkokban 5 cm-es sugarú ívvel"]
[null,null,"Konszignációs jele : BL-02a"]
[null,null,"Készül : ",42.47,"fm",null,null,{"$f":"ROUND(D326*F326, 0)","v":0},{"$f":"ROUND(D326*G326, 0)","v":0}]
[null,2,"Egyedi kivitelű lépcsőkorlát  legyártása és elhelyezése ( egyenes szakasz )"]
[null,null,"Kialakítása : konszignáció szerint.                                                Fő anyag jellemzők : átmérő 50 mm-es és átmétő 20 mm-es szálcsiszolt rozsdamentes acél, átmérő 50 mm-es lakkozott keményfa fogódzóval, sarkokban 5 cm-es sugarú ívvel"]
[null,null,"Konszignációs jele : BL-02b"]
[null,null,"Készül : ",8.74,"fm",null,null,{"$f":"ROUND(D330*F330, 0)","v":0},{"$f":"ROUND(D330*G330, 0)","v":0}]
[null,3,"Egyedi kivitelű korlát legyártása és elhelyezése ( a lépcsőházi ablakfülkében   )"]
[null,null,"Kialakítása : konszignáció szerint.                                                Fő anyag jellemzők : átmérő 50 mm-es és átmétő 20 mm-es szálcsiszolt rozsdamentes acél, átmérő 50 mm-es lakkozott keményfa fogódzóval. Mérete :  60 / 100 cm."]
[null,null,"Konszignációs jele : BL-03"]
[null,null,"Készül : ",12,"db",null,null,{"$f":"ROUND(D334*F334, 0)","v":0},{"$f":"ROUND(D334*G334, 0)","v":0}]
[null,4,"Egyedi kivitelű pad vázszerkezet legyártása és elhelyezése ( lépcsőházban  )"]
[null,null,"Kialakítása : konszignáció szerint.                                                Fő anyag jellemzők : 40.40.3 és 20.20.3-es zártszelvény hegesztett vázszerkezet, végleges felületképzéssel. A BC-01 műkő elemmel összeépítendő. Befoglaló mérete :  sz=20-38 cm; m=50  cm, H=397,5 cm"]
[null,null,"Konszignációs jele : BL-04"]
[null,null,"Készül : ",3,"db",null,null,{"$f":"ROUND(D338*F338, 0)","v":0},{"$f":"ROUND(D338*G338, 0)","v":0}]
[null,null,"MUNKANEM összesen :",{"$nulls":4},{"$f":"SUM(H323:H338)","v":0},{"$f":"SUM(I323:I338)","v":0}]
[]
[]
[null,"BELSŐÉPÍTÉSZETI BÚTOROZÁS ( BA JELŰ )"]
[null,"A MUNKANEM EGYÜTT KEZELENDŐ A KONSZIGNÁCIÓKKAL  ! "]
[null,1,"Éttermi pult. AL.2.06 közlekedő."]
[null,null,"Kialakítása : konszignáció szerint.                                                Főjellemzők : "]
[null,null,"Szerkezeti anyag : L20.20.3 acél zártszelvény vázszerkezet, T20.20.3 merevítéssel, fehér porszór felülettel. PANNONFORM nyír rétegelt lemez, 18 mm vastagságban, Fenofilm bevonattal, R3 mm-es lekerekített látszó élekkel."]
[null,null,"Mérete : Hossz = 298 cm, magassága : 27 + 30 cm, szélessége : 46 cm. "]
[null,null,"Konszignációs jele : BA-04"]
[null,null,"Készül : ",3,"db",null,null,{"$f":"ROUND(D349*F349, 0)","v":0},{"$f":"ROUND(D349*G349, 0)","v":0}]
[null,2,"Fűtés elosztó ajtó. AL.2.10 helyiség."]
[null,null,"Kialakítása : konszignáció szerint.                                                Főjellemzők : "]
[null,null,"Szerkezeti anyag : gipszkarton bordák közé szerelt 30/50 mm-es fenyő stafnivázra szerelt 18 mm vastagságú faforgácslap rejtekajtók, a frontfelületre a falburkolattal megegyező linóleum burkolat ragasztva, 3 db bútorzárral, zongorapánttal."]
[null,null,"Mérete : Hossz = 217 cm, magassága : 72,5 cm."]
[null,null,"Konszignációs jele : BA-05"]
[null,null,"Készül : ",1,"db",null,null,{"$f":"ROUND(D355*F355, 0)","v":0},{"$f":"ROUND(D355*G355, 0)","v":0}]
[null,3,"Éttermi tálaló pultra szerelt dekorációs előlap.  AL.2.10 helyiség."]
[null,null,"Kialakítása : konszignáció szerint.                                                Főjellemzők : "]
[null,null,"Szerkezeti anyag : 18 mm vastag HPL felületű faforgácslap tábla, UNI fehér színben, felső részén postforming élzárással, egyedi matricázott felülettel."]
[null,null,"Mérete : Hossz = 310 cm, magassága : 75 cm."]
[null,null,"Konszignációs jele : BA-06"]
[null,null,"Készül : ",1,"db",null,null,{"$f":"ROUND(D361*F361, 0)","v":0},{"$f":"ROUND(D361*G361, 0)","v":0}]
[null,4,"Ruhatári pult. Földszint 2.04 ruhatár."]
[null,null,"Kialakítása : konszignáció szerint.                                                Főjellemzők : "]
[null,null,"Szerkezeti anyag : 18 mm vastag fenyő rétegelt lemez, R3 mm-es fózzal, a felületben cca. gravírozott felülettel. "]
[null,null,"Kiegészítők : átm 125 mm-es ipari görgő gumiabrocssal, horganyzott villa, forgás- és menetfékkel."]
[null,null,"Mérete : Hossz = 135 cm, magassága : 75 + 15 cm, szélessége : 60 cm."]
[null,null,"Konszignációs jele : BA-07"]
[null,null,"Készül : ",2,"db",null,null,{"$f":"ROUND(D368*F368, 0)","v":0},{"$f":"ROUND(D368*G368, 0)","v":0}]
[null,5,"Folyosói öltözőszekrény. "]
[null,null,"Kialakítása : konszignáció szerint.                                                Főjellemzők : "]
[null,null,"Szerkezeti anyag : 18 mm-es nyír rétegelt rétegelt lemez, PANNONFORM fehér malamin bevonattal, az ajtókon gravírozott számokkal."]
[null,null,"Kiegészítők :  4 db bútorzárral, szekrényenként 2-2 db fogas-akasztórúddal."]
[null,null,"Mérete : Hossz = 67 cm, magassága : 180 cm, szélessége : 50 cm."]
[null,null,"Konszignációs jele : BA-14"]
[null,null,"Készül : ",14,"db",null,null,{"$f":"ROUND(D375*F375, 0)","v":0},{"$f":"ROUND(D375*G375, 0)","v":0}]
[null,6,"Folyosói öltözőszekrény."]
[null,null,"Kialakítása : konszignáció szerint.                                                Főjellemzők : "]
[null,null,"Szerkezeti anyag : 18 mm-es nyír rétegelt rétegelt lemez, PANNONFORM fehér melamin bevonattal, az ajtókon gravírozott számokkal."]
[null,null,"Kiegészítők :  6 db bútorzárral, szekrényenként 2-2 db fogas-akasztórúddal."]
[null,null,"Mérete : Hossz = 98,5 cm, magassága : 180 cm, szélessége : 50 cm."]
[null,null,"Konszignációs jele : BA-15"]
[null,null,"Készül : ",38,"db",null,null,{"$f":"ROUND(D382*F382, 0)","v":0},{"$f":"ROUND(D382*G382, 0)","v":0}]
[null,7,"Portás pult. Földszint  2.02 porta."]
[null,null,"Kialakítása : konszignáció szerint.                                                Főjellemzők : "]
[null,null,"Szerkezeti anyag : 18 mm-es nyír rétegelt rétegelt lemez, PANNONFORM fehér melamin bevonattal, látszó élekkel, R3 mm-es élkerekítéssel, 38 mm vastag tömbösített nyír pulttal."]
[null,null,"Kiegészítés : 4 db fiók."]
[null,null,"Mérete : Hossz = 180 cm, magassága : 90 cm, szélessége : 60 cm."]
[null,null,"Konszignációs jele : BA-26"]
[null,null,"Készül : ",1,"db",null,null,{"$f":"ROUND(D389*F389, 0)","v":0},{"$f":"ROUND(D389*G389, 0)","v":0}]
[null,8,"Faliszekrény. Földszint  2.02 porta."]
[null,null,"Kialakítása : konszignáció szerint.                                                Főjellemzők : "]
[null,null,"Típusa : MANUTÁN 64 kulcsos zárható acéllemezes szekrény, gyári porszórt felületképzéssel, szürke színben."]
[null,null,"Mérete : Hossz = 30 cm, magassága : 45 cm, szélessége : 8 cm."]
[null,null,"Konszignációs jele : BA-27"]
[null,null,"Készül : ",3,"db",null,null,{"$f":"ROUND(D395*F395, 0)","v":0},{"$f":"ROUND(D395*G395, 0)","v":0}]
[null,9,"Büfé átadó és bárpult. Földszint  aula-büfé."]
[null,null,"Kialakítása : konszignáció szerint.                                                Főjellemzők : "]
[null,null,"Szerkezeti anyag : 40.40.3 és 20.20.3 zártszelvény hegesztett vázszerkezet, felületkezelve. KOSKIDECOR TRANSPARENT 18 mm-s dekoratív rétegelt lemez, áttetsző melamin bevonattal. Frontlap 18 mm-es fenyő rétegelt lemez, R3 mm-es fózzal, 2 réteg vízesbázisú matt lakkal, a rétegelt lemez felületen cca. 0,5 m2 egyedi gravirozású felülettel."]
[null,null,"Mérete : Hossz = 482 + 302 cm, magassága : 120 cm, szélessége : 82 cm."]
[null,null,"Konszignációs jele : BA-28"]
[null,null,"Készül : ",1,"db",null,null,{"$f":"ROUND(D401*F401, 0)","v":0},{"$f":"ROUND(D401*G401, 0)","v":0}]
[null,10,"Büfé hátfal pult és hátfal szekrény. Földszint  aula-büfé."]
[null,null,"Kialakítása : konszignáció szerint.                                                Főjellemzők : "]
[null,null,"Szerkezeti anyag : ajtólap és pult KOSKIDECOR TRANSPARENT 18 mm-s dekoratív rétegelt lemez, áttetsző melamin bevonattal. Polcok : 18 mm-es fekete laminált faforgácslap, fali acél polctartó konzolokkal. 15 cm magas lábazat HPL dekorlemez, antracitszürke színben, vízzáró tömítésekkel."]
[null,null,"Pult mérete : Hossz = 196  cm, magassága : 90 cm, szélessége : 42 cm."]
[null,null,"Pult mérete : Hossz = 163 cm, magassága : 90 cm, szélessége : 42 cm."]
[null,null,"Polc mérete : Hossz = 176 cm, szélessége : 42 cm. Készül 4 db."]
[null,null,"Polc mérete : Hossz = 141 cm, szélessége : 42 cm. Készül 4 db."]
[null,null,"Konszignációs jele : BA-29"]
[null,null,"Készül : ",1,"db",null,null,{"$f":"ROUND(D410*F410, 0)","v":0},{"$f":"ROUND(D410*G410, 0)","v":0}]
[null,11,"Raktár polc. Földszint  2.06 raktár."]
[null,null,"Kialakítása : konszignáció szerint.                                                Főjellemzők : "]
[null,null,"Típusa : Dexion-Salgo, csavarmentes, 7 polccal."]
[null,null,"Mérete : Hossz = 165 cm, magassága : 250 cm, szélessége : 40 cm."]
[null,null,"Konszignációs jele : BA-30"]
[null,null,"Készül : ",1,"db",null,null,{"$f":"ROUND(D416*F416, 0)","v":0},{"$f":"ROUND(D416*G416, 0)","v":0}]
[null,12,"Raktár polc. Földszint  2.06 raktár."]
[null,null,"Kialakítása : konszignáció szerint.                                                Főjellemzők : "]
[null,null,"Típusa : Dexion-Salgo, csavarmentes, 7 polccal."]
[null,null,"Mérete : Hossz = 120 cm, magassága : 250 cm, szélessége : 32 cm."]
[null,null,"Konszignációs jele : BA-31"]
[null,null,"Készül : ",1,"db",null,null,{"$f":"ROUND(D422*F422, 0)","v":0},{"$f":"ROUND(D422*G422, 0)","v":0}]
[null,13,"Folyosói beülő. Földszint 2.08 zsibongó."]
[null,null,"Kialakítása : konszignáció szerint.                                                Főjellemzők : "]
[null,null,"Szerkezeti anyag : 40.40.3 és 20.20.3 zártszelvény hegesztett vázszerkezet, felületkezelve. 18 mm vtg fenyő rétegelt lemez, látszó élekkel, R3 fózzal, 2 réteg vízbázisú matt lakkozással."]
[null,null,"Hátfal : festett falfelület linólieum burkolattal."]
[null,null,"Ülőfelület : KOSKIDECOR TRANSPARENT 18 mm vastag melamin fólia bevonatú rétegelt lemez.( 2,20 m2 )"]
[null,null,"Megjegyzés : a rétegelt lemez felületen cca. 0,5 m2 egyedi gravirozású felülettel."]
[null,null,"Kiegészítők : a bútor alá tolható acélvázas, rétegelt lemez borítású ülőke, 35 / 35 / 34 cm-es befoglaló mérettel ( 6 db )"]
[null,null,"Mérete :  hossz = 613 cm , magassága : 303 cm, szélessége : 41-67 cm ( változó )."]
[null,null,"Konszignációs jele : BA-32a"]
[null,null,"Készül : ",1,"db",null,null,{"$f":"ROUND(D432*F432, 0)","v":0},{"$f":"ROUND(D432*G432, 0)","v":0}]
[null,14,"Folyosói dobogó. Földszint 2.08 zsibongó."]
[null,null,"Kialakítása : konszignáció szerint.                                                Főjellemzők : "]
[null,null,"Szerkezeti anyag : 40.40.3 és 20.20.3 zártszelvény hegesztett vázszerkezet, felületkezelve. 12 mm-es OSB nútféderes vázszerkezeten 15 mm vastaságú PANNONFA lap rétegelt lemez HEXA, szürke felülettel."]
[null,null,"Megjegyzés : a rétegelt lemez felületen cca. 0,5 m2 egyedi gravirozású felülettel."]
[null,null,"Mérete :  maximális hossz = 297 cm , maximális magassága : 90 cm, szélessége : 267-136 cm ( változó )."]
[null,null,"Konszignációs jele : BA-32b"]
[null,null,"Készül : ",1,"db",null,null,{"$f":"ROUND(D439*F439, 0)","v":0},{"$f":"ROUND(D439*G439, 0)","v":0}]
[null,15,"Tantermi szekrény kézmosóval. Földszint 2.16 tanterem."]
[null,null,"Kialakítása : konszignáció szerint.                                                Főjellemzők : "]
[null,null,"Szerkezeti anyag : 18 mm-es KOSKIDEKOR ECO TRANSPARENT dekoratív rétegelt lemez áttetsző melamin bevonattal. Nyitott polchátfal kiviteli tervben meghatározott színben, frontok és oldallapok fehér színben. Belső korpusz fehér laminált bútorlap, ABS élzárással."]
[null,null,"Kiegészítők :  bútorzárral, foganytyúk : 30 mm-es átmérőjű kör lyuk a bútorlapba marva."]
[null,null,"Kapcsoló kiegészítők : MARMY Serena 60x35 cm-es mosdókagyló ( gépészeti kv szerint ), mosdó alatt szemétbedovóval és szemetessel."]
[null,null,"Mérete : Hossz = 80 cm, magassága : 345 cm, szélessége : 60 cm."]
[null,null,"Konszignációs jele : BA-33"]
[null,null,"Készül : ",1,"db",null,null,{"$f":"ROUND(D447*F447, 0)","v":0},{"$f":"ROUND(D447*G447, 0)","v":0}]
[null,16,"Mosogató szekrény kézmosóval. Földszint 2.11 rajzterem."]
[null,null,"Kialakítása : konszignáció szerint.                                                Főjellemzők : "]
[null,null,"Szerkezeti anyag : L20.20.3 acél zártszelvény vázszerkezet, fehér porszórt felülettel, falra rögzítve. A falburkolat és a musdóteknő ( Franke Sirius CA210 ) köré épített 10 mm-es egyoldalon színezett kompaktlemez burkolat, EGGER UNIDECOR Uni 608 színben."]
[null,null,"Falburkolat mérete : Hossz = 300 cm, magassága : 40 cm."]
[null,null,"Frontlap mérete : Hossz = 150 cm, magassága : 32 cm."]
[null,null,"Asztallap mérete : Hossz = 150 cm, magassága : 50 cm."]
[null,null,"Oldalfal mérete : Hossz = 50 cm, magassága : 32 cm ( 2 db )."]
[null,null,"Konszignációs jele : BA-34"]
[null,null,"Készül : ",1,"db",null,null,{"$f":"ROUND(D456*F456, 0)","v":0},{"$f":"ROUND(D456*G456, 0)","v":0}]
[null,17,"Szertár beépített szekrény. Földszint 2.12 szertár."]
[null,null,"Kialakítása : konszignáció szerint.                                                Főjellemzők : "]
[null,null,"Szerkezeti anyag : 18 mm-es nyír rétegelt rétegelt lemez, látszó élekkel, közé-záródó ajtókkal, R3 mm-es fózzal, 2 réteg vízesbázisú matt lakkozással. Belső korpusz fehér laminált bútorlap, ABS élzárással."]
[null,null,"Kiegészítők : 6 db fiókkal, bútorzárral, foganytyúk : 30 mm-es átmérőjű kör lyuk a bútorlapba marva."]
[null,null,"Mérete : Hossz = 300 cm, magassága : 345 cm, szélessége : 70 cm."]
[null,null,"Konszignációs jele : BA-35a"]
[null,null,"Készül : ",1,"db",null,null,{"$f":"ROUND(D463*F463, 0)","v":0},{"$f":"ROUND(D463*G463, 0)","v":0}]
[null,18,"Szertár beépített szekrény. Földszint 2.12 szertár."]
[null,null,"Kialakítása : konszignáció szerint.                                                Főjellemzők : "]
[null,null,"Szerkezeti anyag : 18 mm-es nyír rétegelt rétegelt lemez, látszó élekkel, közé-záródó ajtókkal, R3 mm-es fózzal, 2 réteg vízesbázisú matt lakkozással. Belső korpusz fehér laminált bútorlap, ABS élzárással."]
[null,null,"Kiegészítők : 8 db fiókkal, bútorzárral, foganytyúk : 30 mm-es átmérőjű kör lyuk a bútorlapba marva."]
[null,null,"Mérete : Hossz = 565 cm, magassága : 345 cm, szélessége : 70 cm."]
[null,null,"Konszignációs jele : BA-35b"]
[null,null,"Készül : ",1,"db",null,null,{"$f":"ROUND(D470*F470, 0)","v":0},{"$f":"ROUND(D470*G470, 0)","v":0}]
[null,19,"Tantermi szekrény. Földszint 2.16 tanterem."]
[null,null,"Kialakítása : konszignáció szerint.                                                Főjellemzők : "]
[null,null,"Szerkezeti anyag : 18 mm-es KOSKIDEKOR ECO TRANSPARENT dekoratív rétegelt lemez áttetsző melamin bevonattal. Nyitott polchátfal kiviteli tervben meghatározott színben, frontok és oldallapok fehér színben. Belső korpusz fehér laminált bútorlap, ABS élzárással."]
[null,null,"Kiegészítők : üveg tolóajtó Kamex Vetrine 15 tolóajtó vasalattal, bútorzárral, foganytyúk : 30 mm-es átmérőjű kör lyuk a bútorlapba marva."]
[null,null,"Mérete : Hossz = 700 cm, magassága : 345 cm, szélessége : 60 cm."]
[null,null,"Konszignációs jele : BA-36"]
[null,null,"Készül : ",1,"db",null,null,{"$f":"ROUND(D477*F477, 0)","v":0},{"$f":"ROUND(D477*G477, 0)","v":0}]
[null,20,"Szertár szekrény. Földszint 2.17 szertár."]
[null,null,"Kialakítása : konszignáció szerint.                                                Főjellemzők : "]
[null,null,"Szerkezeti anyag : 18 mm-es nyír rétegelt rétegelt lemez, látszó élekkel, közé-záródó ajtókkal, R3 mm-es fózzal, 2 réteg vízesbázisú matt lakkozással. Belső korpusz fehér laminált bútorlap, ABS élzárással."]
[null,null,"Kiegészítők : bútorzárral, foganytyúk : 30 mm-es átmérőjű kör lyuk a bútorlapba marva."]
[null,null,"Mérete : Hossz = 336 cm, magassága : 300 cm, szélessége : 60 cm."]
[null,null,"Konszignációs jele : BA-37"]
[null,null,"Készül : ",1,"db",null,null,{"$f":"ROUND(D484*F484, 0)","v":0},{"$f":"ROUND(D484*G484, 0)","v":0}]
[null,21,"Szertár szekrény. Földszint 2.17 szertár."]
[null,null,"Kialakítása : konszignáció szerint.                                                Főjellemzők : "]
[null,null,"Szerkezeti anyag : 18 mm-es nyír rétegelt rétegelt lemez, látszó élekkel, közé-záródó ajtókkal, R3 mm-es fózzal, 2 réteg vízesbázisú matt lakkozással. Belső korpusz fehér laminált bútorlap, ABS élzárással."]
[null,null,"Kiegészítők : bútorzárral, foganytyúk : 30 mm-es átmérőjű kör lyuk a bútorlapba marva."]
[null,null,"Mérete : Hossz = 500 cm, magassága : 300 cm, szélessége : 40 cm."]
[null,null,"Konszignációs jele : BA-38"]
[null,null,"Készül : ",1,"db",null,null,{"$f":"ROUND(D491*F491, 0)","v":0},{"$f":"ROUND(D491*G491, 0)","v":0}]
[null,22,"Folyosói beülő. Földszint 2.09 közlekedő"]
[null,null,"Kialakítása : konszignáció szerint.                                                Főjellemzők : "]
[null,null,"Szerkezeti anyag : 40.40.3 és 20.20.3 zártszelvény hegesztett vázszerkezet, felületkezelve. 18 mm vtg fenyő rétegelt lemez, látszó élekkel, R3 fózzal, 2 réteg vízbázisú matt lakkozással."]
[null,null,"Hátfal : festett falfelület linólieum burkolattal."]
[null,null,"Ülőfelület : KOSKIDECOR TRANSPARENT 18 mm vastag melamin fólia bevonatú rétegelt lemez."]
[null,null,"Megjegyzés : a rétegelt lemez felületen cca. 0,5 m2 egyedi gravirozású felülettel."]
[null,null,"Mérete :  hossz = 927 cm , magassága : 318 cm, szélessége : 104 cm ( változó )."]
[null,null,"Konszignációs jele : BA-39"]
[null,null,"Készül : ",1,"db",null,null,{"$f":"ROUND(D500*F500, 0)","v":0},{"$f":"ROUND(D500*G500, 0)","v":0}]
[null,23,"Szertár szekrény. Földszint 2.18 szertár."]
[null,null,"Kialakítása : konszignáció szerint.                                                Főjellemzők : "]
[null,null,"Szerkezeti anyag : 18 mm-es nyír rétegelt rétegelt lemez, látszó élekkel, közé-záródó ajtókkal, R3 mm-es fózzal, 2 réteg vízesbázisú matt lakkozással. Belső korpusz fehér laminált bútorlap, ABS élzárással."]
[null,null,"Kiegészítők : bútorzárral, foganytyúk : 30 mm-es átmérőjű kör lyuk a bútorlapba marva."]
[null,null,"Mérete : Hossz = 390 cm, magassága : 300 cm, szélessége : 60 cm."]
[null,null,"Konszignációs jele : BA-40"]
[null,null,"Készül : ",1,"db",null,null,{"$f":"ROUND(D507*F507, 0)","v":0},{"$f":"ROUND(D507*G507, 0)","v":0}]
[null,24,"Vegyszerálló szertár pult. Földszint 2.18 szertár."]
[null,null,"Kialakítása : konszignáció szerint.                                                Főjellemzők : "]
[null,null,"Szerkezeti anyag : 18 mm-es nyír rétegelt rétegelt lemez, látszó élekkel, közé-záródó ajtókkal, R3 mm-es fózzal, 2 réteg vízesbázisú matt lakkozással,  a pult 5 mm vastag vegyszerálló fehér laminált bútolappal, ABS élzárással., porszórt acéllábakkal."]
[null,null,"Kiegészítők : 5 db a  pultba süllyesztett alumínium szellőzőrács, PALADIN fali edényszárító 72 tüskével."]
[null,null,"Mérete : Hossz = 400 cm, magassága : 70 + 15 cm, szélessége : 60 cm."]
[null,null,"Konszignációs jele : BA-41"]
[null,null,"Készül : ",1,"db",null,null,{"$f":"ROUND(D514*F514, 0)","v":0},{"$f":"ROUND(D514*G514, 0)","v":0}]
[null,25,"Tantermi szekrény kézmosóval"]
[null,null,"Kialakítása : konszignáció szerint.                                                Főjellemzők : "]
[null,null,"Szerkezeti anyag : 18 mm-es KOSKIDEKOR ECO TRANSPARENT dekoratív rétegelt lemez áttetsző melamin bevonattal. Nyitott polchátfal kiviteli tervben meghatározott színben, frontok és oldallapok fehér színben. Belső korpusz fehér laminált bútorlap, ABS élzárással."]
[null,null,"Kiegészítők :  bútorzárral, foganytyúk : 30 mm-es átmérőjű kör lyuk a bútorlapba marva."]
[null,null,"Kapcsoló kiegészítők : MARMY Serena 60x35 cm-es mosdókagyló ( gépészeti kv szerint ), mosdó alatt szemétbedovóval és szemetessel."]
[null,null,"Mérete : Hossz = 80 cm, magassága : 300 cm, szélessége : 30 cm."]
[null,null,"Konszignációs jele : BA-42"]
[null,null,"Készül : ",4,"db",null,null,{"$f":"ROUND(D522*F522, 0)","v":0},{"$f":"ROUND(D522*G522, 0)","v":0}]
[null,26,"Elosztószekrény. Alagsor AL 2.02közlekedő"]
[null,null,"Kialakítása : konszignáció szerint.                                                Főjellemzők : "]
[null,null,"Szerkezeti anyag : 18 mm-es  fehér laminált bútorlap, ABS élzárással."]
[null,null,"Kiegészítők :  bútorzár."]
[null,null,"Mérete : Hossz = 250 cm, magassága : 300 cm, szélessége : 60 cm."]
[null,null,"Konszignációs jele : BA-43"]
[null,null,"Készül : ",1,"db",null,null,{"$f":"ROUND(D529*F529, 0)","v":0},{"$f":"ROUND(D529*G529, 0)","v":0}]
[null,27,"Folyosói beülő. 1. emelet 2.03 zsibongó."]
[null,null,"Kialakítása : konszignáció szerint.                                                Főjellemzők : "]
[null,null,"Szerkezeti anyag : 40.40.3 és 20.20.3 zártszelvény hegesztett vázszerkezet, felületkezelve. 18 mm vtg fenyő rétegelt lemez, látszó élekkel, R3 fózzal, 2 réteg vízbázisú matt lakkozással."]
[null,null,"Hátfal : festett falfelület linólieum burkolattal."]
[null,null,"Ülőfelület : KOSKIDECOR TRANSPARENT 18 mm vastag melamin fólia bevonatú rétegelt lemez."]
[null,null,"Megjegyzés : a rétegelt lemez felületen cca. 0,5 m2 egyedi gravirozású felülettel."]
[null,null,"Mérete :  hossz = 613 cm , magassága : 303 cm, szélessége : 41-67 cm ( változó )."]
[null,null,"Konszignációs jele : BA-46a"]
[null,null,"Készül : ",1,"db",null,null,{"$f":"ROUND(D538*F538, 0)","v":0},{"$f":"ROUND(D538*G538, 0)","v":0}]
[null,28,"Folyosói dobogó. Földszint 2.08 zsibongó."]
[null,null,"Kialakítása : konszignáció szerint.                                                Főjellemzők : "]
[null,null,"Szerkezeti anyag : 40.40.3 és 20.20.3 zártszelvény hegesztett vázszerkezet, felületkezelve. 12 mm-es OSB nútféderes vázszerkezeten 15 mm vastaságú PANNONFA lap rétegelt lemez HEXA, szürke felülettel."]
[null,null,"Megjegyzés : a rétegelt lemez felületen cca. 0,5 m2 egyedi gravirozású felülettel."]
[null,null,"Mérete :  maximális hossz = 377 cm , maximális magassága : 45 cm, szélessége : 374-366 cm ( változó )."]
[null,null,"Konszignációs jele : BA-46b"]
[null,null,"Készül : ",1,"db",null,null,{"$f":"ROUND(D545*F545, 0)","v":0},{"$f":"ROUND(D545*G545, 0)","v":0}]
[null,29,"Szertári szekrény. 1. emelet 2.07."]
[null,null,"Kialakítása : konszignáció szerint.                                                Főjellemzők : "]
[null,null,"Szerkezeti anyag : 18 mm-es nyír rétegelt rétegelt lemez, látszó élekkel, közé-záródó ajtókkal, R3 mm-es fózzal, 2 réteg vízesbázisú matt lakkozással. Belső korpusz fehér laminált bútorlap, ABS élzárással."]
[null,null,"Kiegészítők : 6 db fiók,  bútorzárral, foganytyúk : 30 mm-es átmérőjű kör lyuk a bútorlapba marva."]
[null,null,"Mérete : Hossz = 540 cm, magassága : 300 cm, szélessége : 40 cm."]
[null,null,"Konszignációs jele : BA-47a"]
[null,null,"Készül : ",1,"db",null,null,{"$f":"ROUND(D552*F552, 0)","v":0},{"$f":"ROUND(D552*G552, 0)","v":0}]
[null,30,"Szertári szekrény. 1. emelet 2.07."]
[null,null,"Kialakítása : konszignáció szerint.                                                Főjellemzők : "]
[null,null,"Szerkezeti anyag : 18 mm-es nyír rétegelt rétegelt lemez, látszó élekkel, közé-záródó ajtókkal, R3 mm-es fózzal, 2 réteg vízesbázisú matt lakkozással. Belső korpusz fehér laminált bútorlap, ABS élzárással."]
[null,null,"Kiegészítők : bútorzárral, foganytyúk : 30 mm-es átmérőjű kör lyuk a bútorlapba marva."]
[null,null,"Mérete : Hossz = 292 cm, magassága : 300 cm, szélessége : 40 cm."]
[null,null,"Konszignációs jele : BA-47b"]
[null,null,"Készül : ",1,"db",null,null,{"$f":"ROUND(D559*F559, 0)","v":0},{"$f":"ROUND(D559*G559, 0)","v":0}]
[null,31,"Tantermi könyvespolc. 1. emelet 2.12."]
[null,null,"Kialakítása : konszignáció szerint.                                                Főjellemzők : "]
[null,null,"Szerkezeti anyag : 18 mm-es nyír rétegelt rétegelt lemez, PANNONFORM fekete melamin bevonattal, látszó élekkel, R3 mm-es élkerekítéssel."]
[null,null,"Mérete : Hossz = 320 cm, magassága : 212 cm, szélessége : 30 cm."]
[null,null,"Konszignációs jele : BA-49"]
[null,null,"Készül : ",1,"db",null,null,{"$f":"ROUND(D565*F565, 0)","v":0},{"$f":"ROUND(D565*G565, 0)","v":0}]
[null,32,"Tantermi könyvespolc. 1. emelet 2.12."]
[null,null,"Kialakítása : konszignáció szerint.                                                Főjellemzők : "]
[null,null,"Szerkezeti anyag : 18 mm-es nyír rétegelt rétegelt lemez, PANNONFORM fekete melamin bevonattal, látszó élekkel, R3 mm-es élkerekítéssel."]
[null,null,"Mérete : Hossz = 66 cm, magassága : 170 cm, szélessége : 25 cm."]
[null,null,"Konszignációs jele : BA-50"]
[null,null,"Készül : ",11,"db",null,null,{"$f":"ROUND(D571*F571, 0)","v":0},{"$f":"ROUND(D571*G571, 0)","v":0}]
[null,33,"Galérai mellvédkorlát ( egyenes )"]
[null,null,"Kialakítása : konszignáció szerint.                                                Főjellemzők : "]
[null,null,"Szerkezeti anyag : 60.30.3 zártszelvény hegesztett vázszerkezet, felületkezelve, fenyő stavnivázzal kiegésztve. 18 mm vtg KOSKIDECOR TRANSPARENT 18 mm vastag melamin fólia bevonatú rétegelt lemez burkolat, hullámlemezekből összállított táblákkal."]
[null,null,"Mérete :  teljes hossz = 3102 cm , teljes magassága : 75 cm, szélessége : 20 cm"]
[null,null,"Konszignációs jele : BA-52a"]
[null,null,"Készül : ",31.02,"fm",null,null,{"$f":"ROUND(D577*F577, 0)","v":0},{"$f":"ROUND(D577*G577, 0)","v":0}]
[null,34,"Galérai mellvédkorlát ( íves )"]
[null,null,"Kialakítása : konszignáció szerint.                                                Főjellemzők : "]
[null,null,"Szerkezeti anyag : 60.30.3 zártszelvény hegesztett vázszerkezet, felületkezelve, fenyő stavnivázzal kiegésztve. 18 mm vtg KOSKIDECOR TRANSPARENT 18 mm vastag melamin fólia bevonatú rétegelt lemez burkolat, hullámlemezekből összállított táblákkal."]
[null,null,"Megjegyzés : hajlítható rétegelt lemez."]
[null,null,"Mérete :  teljes hossz = 1050 cm , teljes magassága : 75 cm, szélessége : 20 cm"]
[null,null,"Konszignációs jele : BA-52b"]
[null,null,"Készül : ",10.5,"fm",null,null,{"$f":"ROUND(D584*F584, 0)","v":0},{"$f":"ROUND(D584*G584, 0)","v":0}]
[null,35,"Burkolat eltolható mobilfalhoz. 2. emelet 2.03."]
[null,null,"Kialakítása : konszignáció szerint.                                                Főjellemzők : "]
[null,null,"Szerkezeti anyag : 18 mm vtg laminált faforgácslap, fehér színben, élkeményfa élzárással, síkbeli illesztésekkel."]
[null,null,"Befoglaló mérete : 18 / 20 / 285  cm + 40 / 20 / 285 cm."]
[null,null,"Konszignációs jele : BA-53"]
[null,null,"Készül : ",1,"db",null,null,{"$f":"ROUND(D590*F590, 0)","v":0},{"$f":"ROUND(D590*G590, 0)","v":0}]
[null,36,"Sekrestye szekrény mosogatóval. 2. emelet 2.06."]
[null,null,"Kialakítása : konszignáció szerint.                                                Főjellemzők : "]
[null,null,"Szerkezeti anyag : 18 mm-es nyír rétegelt rétegelt lemez, látszó élekkel, közé-záródó ajtókkal, R3 mm-es fózzal, 2 réteg vízesbázisú matt lakkozással. Belső korpusz fehér laminált bútorlap, ABS élzárással."]
[null,null,"Kiegészítők : bútorzárral, foganytyúk : 30 mm-es átmérőjű kör lyuk a bútorlapba marva, 1 medencés rm mosogató."]
[null,null,"Mérete : Hossz = 600 cm, magassága : 300 cm, szélessége : 60 cm."]
[null,null,"Konszignációs jele : BA-54"]
[null,null,"Készül : ",1,"db",null,null,{"$f":"ROUND(D597*F597, 0)","v":0},{"$f":"ROUND(D597*G597, 0)","v":0}]
[null,37,"Folyosói beülő. 2. emelet 2.03 zsibongó."]
[null,null,"Kialakítása : konszignáció szerint.                                                Főjellemzők : "]
[null,null,"Szerkezeti anyag : 40.40.3 és 20.20.3 zártszelvény hegesztett vázszerkezet, felületkezelve. 18 mm vtg fenyő rétegelt lemez, látszó élekkel, R3 fózzal, 2 réteg vízbázisú matt lakkozással."]
[null,null,"Hátfal : ragasztott rétegelt lemez."]
[null,null,"Ülőfelület : KOSKIDECOR TRANSPARENT 18 mm vastag melamin fólia bevonatú rétegelt lemez."]
[null,null,"Megjegyzés : a rétegelt lemez felületen cca. 0,5 m2 egyedi gravirozású felülettel."]
[null,null,"Mérete : hossz = 178 cm , magassága : 300 cm, szélessége : 35 cm + hossz = 180 cm , magassága : 300 cm, szélessége : 35 cm  + átm 60 /25 cm íves doboz               (  íves kialakítás )."]
[null,null,"Konszignációs jele : BA-55"]
[null,null,"Készül : ",1,"db",null,null,{"$f":"ROUND(D606*F606, 0)","v":0},{"$f":"ROUND(D606*G606, 0)","v":0}]
[null,38,"Szertári szekrény. 2. emelet 2.11."]
[null,null,"Kialakítása : konszignáció szerint.                                                Főjellemzők : "]
[null,null,"Szerkezeti anyag : 18 mm-es nyír rétegelt rétegelt lemez, látszó élekkel, közé-záródó ajtókkal, R3 mm-es fózzal, 2 réteg vízesbázisú matt lakkozással. Belső korpusz fehér laminált bútorlap, ABS élzárással."]
[null,null,"Kiegészítők : bútorzárral, foganytyúk : 30 mm-es átmérőjű kör lyuk a bútorlapba marva."]
[null,null,"Mérete : Hossz = 400 cm, magassága : 300 cm, szélessége : 40 cm + Hossz = 200 cm, magassága : 90 cm, szélessége : 40 cm "]
[null,null,"Konszignációs jele : BA-56"]
[null,null,"Készül : ",1,"db",null,null,{"$f":"ROUND(D613*F613, 0)","v":0},{"$f":"ROUND(D613*G613, 0)","v":0}]
[null,39,"Tantermi szekrény kézmosóval. 2. emelet 2.12."]
[null,null,"Kialakítása : konszignáció szerint.                                                Főjellemzők : "]
[null,null,"Szerkezeti anyag : 18 mm-es KOSKIDEKOR ECO TRANSPARENT dekoratív rétegelt lemez áttetsző melamin bevonattal. Nyitott polchátfal kiviteli tervben meghatározott színben, frontok és oldallapok fehér színben. Belső korpusz fehér laminált bútorlap, ABS élzárással."]
[null,null,"Kiegészítők :  bútorzárral, foganytyúk : 30 mm-es átmérőjű kör lyuk a bútorlapba marva, 4 db alu szellőzőrács."]
[null,null,"Mérete : Hossz = 690 cm, magassága : 93 cm, szélessége : 40 + 30 cm."]
[null,null,"Konszignációs jele : BA-57"]
[null,null,"Készül : ",1,"db",null,null,{"$f":"ROUND(D620*F620, 0)","v":0},{"$f":"ROUND(D620*G620, 0)","v":0}]
[null,40,"Kápolna hátfal. 2. emelet 2.07"]
[null,null,"Kialakítása : konszignáció szerint.                                                Főjellemzők : "]
[null,null,"Szerkezeti anyag : 15 mm-es PANNONFALAP furatolt            ( átm. 20-50 ) rétegelt lemez  akusztikai panel, nútolt illesztéssel, rejtett rögzítéssel, csiszolt felülettel, selyemfényű lakkozással + stafniváz áttérszerkezet."]
[null,null,"Kiegészítők : beépített LED-szalag háttér világítás."]
[null,null,"Mérete : Hossz = 500 cm, magassága : 255 cm, szélessége : 12 cm."]
[null,null,"Konszignációs jele : BA-58"]
[null,null,"Készül : ",1,"db",null,null,{"$f":"ROUND(D627*F627, 0)","v":0},{"$f":"ROUND(D627*G627, 0)","v":0}]
[null,41,"Kápolna radiátor burkolat. 2. emelet 2.07"]
[null,null,"Kialakítása : konszignáció szerint.                                                Főjellemzők : "]
[null,null,"Szerkezeti anyag : 15 mm-es PANNONFALAP furatolt            ( átm. 20-50 ) rétegelt lemez  akusztikai panel, nútolt illesztéssel, rejtett rögzítéssel, csiszolt felülettel, selyemfényű lakkozással + L20.20.3 és fa stafniváz áttérszerkezet. Fedlap : 18 mm-es PANNONFALAP furatolt ( átm. 40 ) rétegelt lemez"]
[null,null,"Kiegészítők : KEKU összetolható vasalat"]
[null,null,"Mérete : Hossz = 350 cm, magassága : 62 cm, szélessége : 20 cm ( 3 helyen az ablak beugróban + 74 / 30 cm )"]
[null,null,"Konszignációs jele : BA-59"]
[null,null,"Készül : ",1,"db",null,null,{"$f":"ROUND(D634*F634, 0)","v":0},{"$f":"ROUND(D634*G634, 0)","v":0}]
[null,42,"Kápolna ablak zsalugáter és falburkolat. 2. emelet 2.07"]
[null,null,"Kialakítása : konszignáció szerint.                                                Főjellemzők : "]
[null,null,"Szerkezeti anyag : 15 mm-es PANNONFALAP furatolt            ( átm. 20-50 ) rétegelt lemez  akusztikai panel, nútolt illesztéssel, rejtett rögzítéssel, csiszolt felülettel, selyemfényű lakkozással. "]
[null,null,"A burkolot felület teljes mérete : Hossz = 240 cm, magassága : 275 cm, benne  3 helyen közében nyíló zsalugátor, mérete : 60 / 210 cm"]
[null,null,"Konszignációs jele : BA-60"]
[null,null,"Készül : ",4,"db",null,null,{"$f":"ROUND(D640*F640, 0)","v":0},{"$f":"ROUND(D640*G640, 0)","v":0}]
[null,null,"MUNKANEM összesen :",{"$nulls":4},{"$f":"SUM(H349:H640)","v":0},{"$f":"SUM(I349:I640)","v":0}]
[]
[]
[null,"VÍZESBLOKK PARAVÁNFALAK ( BF JELŰ )"]
[null,"A MUNKANEM EGYÜTT KEZELENDŐ A KONSZIGNÁCIÓVAL  ! "]
[null,1,"WC válaszfalrendszer legyártása és elhelyezése, konszignáció szerinti kialakatásban, vasalattal és felszereltséggel.                                                         Szerkezeti anyag : ES-SV C-13 kabinrendszer, 12 mm vastag compact műgyanta lap, állítható magasságú rozsdamentes acél lábakkal és padló rozetával, ajtónként 3 zsanérral, WC zárral.                                                            "]
[null,"1.1","WC fülke, 3 db ajtóval. Fiú WC."]
[null,null,"Előfal  mérete : 276 / 200 cm, benne 3 db ajtóval."]
[null,null,"Elválasztófal mérete : 137 / 200 cm, 2 db"]
[null,null,"Megjegyzés :  egyedi UNI 627 szín"]
[null,null,"Konszignációs jele: BF-01"]
[null,null,"Készül: ",1,"db     ",null,null,{"$f":"D652*F652","v":0},{"$f":"D652*G652","v":0}]
[null,"1.2","WC fülke, 4 db ajtóval. Lány WC."]
[null,null,"Előfal  mérete : 396 / 200 cm, benne 4 db ajtóval."]
[null,null,"Elválasztófal mérete : 137 / 200 cm, 3 db"]
[null,null,"Megjegyzés :  egyedi UNI 326 szín"]
[null,null,"Konszignációs jele: BF-01"]
[null,null,"Készül: ",1,"db     ",null,null,{"$f":"D658*F658","v":0},{"$f":"D658*G658","v":0}]
[null,"1.3","WC fülke, 2 db ajtóval. Fiú WC."]
[null,null,"Előfal  mérete : 181  / 200 cm, benne 2 db ajtóval."]
[null,null,"Elválasztófal mérete : 142 / 200 cm, 1 db"]
[null,null,"Megjegyzés :  egyedi UNI 627 szín"]
[null,null,"Konszignációs jele: BF-08"]
[null,null,"Készül: ",3,"db     ",null,null,{"$f":"D664*F664","v":0},{"$f":"D664*G664","v":0}]
[null,"1.4","WC fülke, 4 db ajtóval. Lány WC."]
[null,null,"Előfal  mérete : 396 / 200 cm, benne 4 db ajtóval."]
[null,null,"Elválasztófal mérete : 125,5 / 200 cm, 3 db"]
[null,null,"Megjegyzés :  egyedi UNI 326 szín"]
[null,null,"Konszignációs jele: BF-09"]
[null,null,"Készül: ",3,"db     ",null,null,{"$f":"D670*F670","v":0},{"$f":"D670*G670","v":0}]
[null,2,"Piszoár elválasztó paraván legyártása és elhelyezése, konszignáció szerinti kialakatásban, vasalattal és felszereltséggel.                                                         Szerkezeti anyag : ES-SV C-13 rendszer, 12 mm vastag compact műgyanta lap, állítható magasságú rozsdamentes acél lábakkal és padló rozetával.                                "]
[null," 2.1","Piszoár elválasztó paraván. Fiú WC-k."]
[null,null,"Mérete : 45 + 15 / 125 +15 cm."]
[null,null,"Megjegyzés :  egyedi UNI 627 szín"]
[null,null,"Konszignációs jele : BF-03a"]
[null,null,"Készül : ",15,"db",null,null,{"$f":"ROUND(D676*F676, 0)","v":0},{"$f":"ROUND(D676*G676, 0)","v":0}]
[null,null,"MUNKANEM összesen :",{"$nulls":4},{"$f":"SUM(H652:H676)","v":0},{"$f":"SUM(I652:I676)","v":0}]
[]
[]
[null,"MOSDÓPULTOK ( BP JELŰ )"]
[null,"A MUNKANEM EGYÜTT KEZELENDŐ A KONSZIGNÁCIÓVAL  ! "]
[null,1,"Mosdópult és szekrény legyártása és elhelyezése, konszignáció szerinti kialakatásban..                                                         Szerkezeti anyag :                                                                   40.40.3-as zártszelvény keret tartószerkezet, felületkezelve, 3 oldalon a falhoz dűbelezve.                                  Pult és előlap 10 mm vastag egyoldalán színezett kompaktlemez, EGGER UNIDECOR vagy vele azonos minőségű, fehér színben.                                                                                               Pultba épített mosdókagyló JYKA IBON 813011 típusú. A mosdókagyló körül és a falcsatlakozásoknál tartósan rugalmas szilikonos tömítéssel.                                           "]
[null," 1.1","Mosdópult 2 mosdóval. Fiú WC-k."]
[null,null,"Pult mérete : 206 / 60 cm, 2 db mosdóhely kivágással."]
[null,null,"Pult előlap mérete : 206 / 21 cm."]
[null,null,"Megjegyzés :  egyedi UNI 627 szín"]
[null,null,"Konszignációs jele : BP-01"]
[null,null,"Készül : ",3,"db",null,null,{"$f":"ROUND(D688*F688, 0)","v":0},{"$f":"ROUND(D688*G688, 0)","v":0}]
[null," 1.2","Mosdópult 2 mosdóval. Lány WC-k."]
[null,null,"Pult mérete : 181,5 / 60 cm, 2 db mosdóhely kivágással."]
[null,null,"Pult előlap mérete : 181,5 / 21 cm."]
[null,null,"Megjegyzés :  egyedi UNI 326 szín"]
[null,null,"Konszignációs jele : BP-02"]
[null,null,"Készül : ",4,"db",null,null,{"$f":"ROUND(D694*F694, 0)","v":0},{"$f":"ROUND(D694*G694, 0)","v":0}]
[null," 1.3","Mosdópult 2 mosdóval. Fiú WC."]
[null,null,"Pult mérete : 203,5 / 60 cm, 2 db mosdóhely kivágással."]
[null,null,"Pult előlap mérete : 203,5 / 21 cm."]
[null,null,"Megjegyzés :  egyedi UNI 627 szín"]
[null,null,"Konszignációs jele : BP-07"]
[null,null,"Készül : ",1,"db",null,null,{"$f":"ROUND(D700*F700, 0)","v":0},{"$f":"ROUND(D700*G700, 0)","v":0}]
[null,2,"Mosdópult és szekrény legyártása és elhelyezése, konszignáció szerinti kialakatásban..                                                         Szerkezeti anyag :                                                                   40.40.3-as zártszelvény keret tartószerkezet, felületkezelve, 3 oldalon a falhoz dűbelezve.                                  Pult és előlap 10 mm vastag egyoldalán színezett kompaktlemez, EGGER UNIDECOR vagy vele azonos minőségű, fehér színben.                                                                                               Pultba épített mosdókagyló JYKA IBON 813011 típusú. A mosdókagyló körül és a falcsatlakozásoknál tartósan rugalmas szilikonos tömítéssel.                                           A szekrény anyaga : 18 mm vastag KOSKIDECOR TRANSPARENT  dekoratív rétegelt lemez, áttetsző melamin bevonattal, fehér színben.                                            Fogantyú : 30 mm ármérőjű kör lyuk a bútorlapba marva.                                       "]
[null," 2.1","Mosdópult 3 mosdóval + szekrény. Étterem."]
[null,null,"Pult mérete : 295,5 / 58 cm, 3 db mosdóhely kivágással."]
[null,null,"Szekrény teljes mérete : hossza : 295,5 cm, magassága : 213 cm, szélessége : 58 cm."]
[null,null,"Konszignációs jele : BP-03"]
[null,null,"Készül : ",1,"db",null,null,{"$f":"ROUND(D706*F706, 0)","v":0},{"$f":"ROUND(D706*G706, 0)","v":0}]
[null,null,"MUNKANEM összesen :",{"$nulls":4},{"$f":"SUM(H688:H706)","v":0},{"$f":"SUM(I688:I706)","v":0}]
[]
[]
[null,"MŰKŐ SZERKEZETEK ( BC JELŰ )"]
[null,"A MUNKANEM EGYÜTT KEZELENDŐ A BELSŐÉPÍTÉSZETI TERVEKKEL ! "]
[null,1,"Egyedi műkőpad legyártása és elhelyezése"]
[null,null,"Kialakítása : konszignáció szerint.                                                Főjellemzők : "]
[null,null,"Szerkezeti anyagok : 2 cm vastag forgácslap háttérszerkezet, 2 cm vastag műkólap, 5 mm-es lekerekített éllel, a műkőlapből kimart szellőző nyílásokkal."]
[null,null,"Megjegyzés : A BL-04 lakatos szerkezettel összeépítendő."]
[null,null,"Mérete : hossz : 398 cm, szélesség : 50 + 8 cm."]
[null,null,"Konszignációs jele : BC-01"]
[null,null,"Készül : ",3,"db",null,{"$f":"F718*0.22","v":0},{"$f":"ROUND(D718*F718, 0)","v":0},{"$f":"ROUND(D718*G718, 0)","v":0}]
[null,null,"MUNKANEM összesen :",{"$nulls":4},{"$f":"SUM(H712:H718)","v":0},{"$f":"SUM(I712:I718)","v":0}]